Workbook

Sheet 封面
A6: 鲤城区2025年财政收支调整预算表
B10: 附表一：2025年一般公共预算收支调整预算平衡表
B11: 附表二：2025年一般公共预算支出调整预算情况表
B12: 附表三：2025年一般公共预算支出经济分类调整预算情况表
B13: 附表四：2025年“三保”支出调整预算安排情况表
B14: 附表五：2025年政府性基金预算收支调整平衡表
B15: 附表六：2025年政府性基金预算收支计划调整平衡表
B16: 附表七：2025年国有资本经营收支调整预算平衡表
B17: 附表八：2025年新增债券资金收支预算调整表

Sheet 附表一
A1: 附表一
A2: 2025年一般公共预算收支调整预算平衡表
F3: 单位：万元
A4: 收入项目 | B4: 年初 预算 | C4: 调整 预算 | D4: 增减 | E4: 备注 | F4: 支出项目 | G4: 年初 预算 | H4: 调整 预算 | I4: 增减 | J4: 备注
A5: 一、一般公共预算收入 | B5: 167190 | C5: 167190 | D5: 0 | F5: 一、上解上级支出 | G5: 60319 | H5: 67256 | I5: 6937
A6: 二、返还性收入 | B6: 13499 | C6: 13499 | D6: 0 | F6: 1、原体制上解基数 | G6: 19439 | H6: 19439 | I6: 0
A7: 三、上级财力补助 | B7: 15145 | C7: 18528 | D7: 3383 | F7: 2、增值税“五五分享”税收返还 | G7: 2651 | H7: 2651 | I7: 0
A8: 1、区外企业税收 | B8: 4513 | C8: 4513 | D8: 0 | F8: 3、省级固定分成收入上解 | G8: 22893 | H8: 22893 | I8: 0
A9: 2、车船税 | B9: 2400 | C9: 2300 | D9: -100 | F9: 4、市级增收分成上解 | G9: 11594 | H9: 11594 | I9: 0
A10: 3、二手房交易税收 | B10: 3120 | C10: 2700 | D10: -420 | F10: 5、其他上解 | G10: 3742 | H10: 10679 | I10: 6937
A11: 4、其他财力性补助 | B11: 5112 | C11: 9015 | D11: 3903 | F11: 二、体制财力 | G11: 135515 | H11: 131961 | I11: -3554
A12: 四、债券转贷收入 | B12: 20796 | C12: 29265 | D12: 8469 | F12: 三、债务转贷支出 | G12: 0 | H12: 0 | I12: 0
A13: 五、债务收入 | D13: 0 | F13: 四、债务还本支出 | G13: 22936 | H13: 22936 | I13: 0
A14: 六、调入资金 | B14: 106154 | C14: =4550+385+1+97004-1890-700-3420+150-620+3697 -> 99157 | D14: -6997 | F14: 五、调出资金 | G14: 7179 | H14: 3657 | I14: -3522
A15: 七、调入预算稳定调节基金 | B15: 29950 | C15: 29950 | D15: 0 | F15: 六、一般公共预算支出 | G15: 262300 | H15: 263740 | I15: 1440
A16: 八、上级转移支付资金收入 | B16: 9180 | C16: 9180 | D16: 0 | F16: 七、上级转移支付资金安排支出 | G16: 9180 | H16: 9180 | I16: 0
A17: 九、上年结余 | B17: 25402 | C17: 43536 | D17: 18134 | F17: 八、上年结余资金安排支出 | G17: 25402 | H17: 43536 | I17: 18134
A18: 收入合计 | B18: 387316 | C18: 410305 | D18: 22989 | F18: 支出合计 | G18: 387316 | H18: 410305 | I18: 22989
A19: 备注： 1、区外税收定额财力=（6420-228）×0.692+228=4513万元； 2、上缴省财政=（167190-28742-23981）×20%=22893万元； 3、上缴市财政=（167190-28526-29887-22893）×13.5%=11594万元； 4、其他上解=税务部门经费基数上解733万元+泉州市燃气有限公司地方级收入财力结算690万元+医疗卫生领域市与县财政事权和支出责任划分改革相应划转支出基数307万元+上解衔接推进乡村振兴有关资金341万元+江河下游地区对上游地区森林生态效益补偿额度211万元+上解市级财政绿化养护费用138万元+泉州中心城区公共自行车建设运营等资金清算123万元+GF领域相关支出基数上解117万元+上解残疾人就业保障金36万元+上缴就业调剂金33万元+上解图书馆、美术馆、文化馆（站）免费开放补助资金24万元+政法经费保障体制改革20万元+农村信用社企业所得税省级分成部分上解13万元+援助其他地区支出161万元+其他上解795万元+耕地占补平衡指标4550万元+民兵训练基地二期2025年建设经费及管理经费1887万元+市委党校新校区项目运营维护费及一期PPP项目5期可用性服务费500万元=10679万元。 5、债券转贷收入29265万元：再融资债券收入20796万元，新增债券收入8469万元。

Sheet 附表二
A1: 附表二
A2: 2025年一般公共预算支出调整预算情况表
N3: 单位：万元
A4: 科目名称 | B4: 2024年调 整预算数 | C4: 2025年年 初预算数 | D4: 2025年年初预算数 | H4: 2025年调整预算数 | M4: 比年初预 算数增减 | N4: 调整预算数比上年预算数增减 | O4: 备注 | P4: 2025年初预算科目
D5: 人员经费 | E5: 公用经费 | F5: 债务利息 及发行费 | G5: 专项经费 | H5: 合计 | I5: 人员经费 | J5: 公用经费 | K5: 债务利息 及发行费 | L5: 专项经费
A6: 一、一般公共服务支出 | B6: 31681 | C6: =SUM(C7,C13,C18,C24,C31,C37,C41,C43,C47,C53,C57,C59,C63,C66,C69,C73,C77,C81,C85,C91,C95,C100,C106) -> 34058 | D6: 19675 | E6: 2885 | F6: 0 | G6: 11498 | H6: 38948 | I6: 20322 | J6: 2762 | K6: 0 | L6: 15864 | M6: =H6-C6 -> 4890 | N6: =H6-B6 -> 7267 | P6: 201 | Q6: 类
A7: 1.人大事务 | B7: 1008 | C7: =SUM(C8:C12) -> 1262 | D7: 914 | E7: 113 | F7: 0 | G7: 235 | H7: 987 | I7: 679 | J7: 104 | K7: 0 | L7: 204 | M7: -275 | N7: -21 | P7: 20101 | Q7: 款
A8: ①行政运行 | B8: 724 | C8: =SUM(D8:G8) -> 972 | D8: 861 | E8: 111 | F8: 0 | G8: 0 | H8: 725 | I8: 623 | J8: 102 | K8: 0 | L8: 0 | M8: -247 | N8: 1 | P8: 2010101 | Q8: 项
A9: ②一般行政管理事务 | B9: 135 | C9: 128 | D9: 0 | E9: 0 | F9: 0 | G9: 128 | H9: 97 | I9: 0 | J9: 0 | K9: 0 | L9: 97 | M9: -31 | N9: -38 | P9: 2010102 | Q9: 项
A10: ③人大会议 | B10: 44 | C10: 57 | D10: 0 | E10: 0 | F10: 0 | G10: 57 | H10: 57 | I10: 0 | J10: 0 | K10: 0 | L10: 57 | M10: 0 | N10: 13 | P10: 2010104 | Q10: 项
A11: ④代表工作 | B11: 50 | C11: 50 | D11: 0 | E11: 0 | F11: 0 | G11: 50 | H11: 50 | I11: 0 | J11: 0 | K11: 0 | L11: 50 | M11: 0 | N11: 0 | P11: 2010108 | Q11: 项
A12: ⑤事业运行 | B12: 55 | C12: 55 | D12: 53 | E12: 2 | F12: 0 | G12: 0 | H12: 58 | I12: 56 | J12: 2 | K12: 0 | L12: 0 | M12: 3 | N12: 3 | P12: 2010150 | Q12: 项
A13: 2.政协事务 | B13: 775 | C13: =SUM(C14:C17) -> 768 | D13: 556 | E13: 83 | F13: 0 | G13: 129 | H13: 792 | I13: 573 | J13: 90 | K13: 0 | L13: 129 | M13: 24 | N13: 17 | P13: 20102 | Q13: 款
A14: ①行政运行 | B14: 582 | C14: =SUM(D14:G14) -> 586 | D14: 505 | E14: 81 | F14: 0 | G14: 0 | H14: 607 | I14: 519 | J14: 88 | K14: 0 | L14: 0 | M14: 21 | N14: 25 | P14: 2010201 | Q14: 项
A15: ②一般行政管理事务 | B15: 103 | C15: 79 | D15: 0 | E15: 0 | F15: 0 | G15: 79 | H15: 89 | I15: 0 | J15: 0 | K15: 0 | L15: 89 | M15: 10 | N15: -14 | P15: 2010202 | Q15: 项
A16: ③政协会议 | B16: 36 | C16: 50 | D16: 0 | E16: 0 | F16: 0 | G16: 50 | H16: 40 | I16: 0 | J16: 0 | K16: 0 | L16: 40 | M16: -10 | N16: 4 | P16: 2010204 | Q16: 项
A17: ④事业运行 | B17: 54 | C17: 53 | D17: 51 | E17: 2 | F17: 0 | G17: 0 | H17: 56 | I17: 54 | J17: 2 | K17: 0 | L17: 0 | M17: 3 | N17: 2 | P17: 2010250 | Q17: 项
A18: 3.政府办公厅（室）及相关机构事务 | B18: 11088 | C18: =SUM(C19:C23) -> 9505 | D18: 3287 | E18: 915 | F18: 0 | G18: 5303 | H18: 11930 | I18: 3585 | J18: 801 | K18: 0 | L18: 7544 | M18: 2425 | N18: 842 | P18: 20103 | Q18: 款
A19: ①行政运行 | B19: 6337 | C19: =SUM(D19:G19) -> 4620 | D19: 2309 | E19: 261 | F19: 0 | G19: 2050 | H19: 6853 | I19: 2551 | J19: 257 | K19: 0 | L19: 4045 | M19: 2233 | N19: 516 | P19: 2010301 | Q19: 项
A20: ②一般行政管理事务 | B20: 465 | C20: 341 | D20: 0 | E20: 0 | F20: 0 | G20: 341 | H20: 257 | I20: 0 | J20: 0 | K20: 0 | L20: 257 | M20: -84 | N20: -208 | P20: 2010302 | Q20: 项
A21: ③机关服务 | B21: 2707 | C21: 2920 | D21: 53 | E21: 580 | F21: 0 | G21: 2287 | H21: 3098 | I21: 80 | J21: 472 | K21: 0 | L21: 2546 | M21: 178 | N21: 391 | P21: 2010303 | Q21: 项
A22: ④政务公开审批 | B22: 1090 | C22: 1113 | D22: 431 | E22: 57 | F22: 0 | G22: 625 | H22: 1198 | I22: 447 | J22: 55 | K22: 0 | L22: 696 | M22: 85 | N22: 108 | P22: 2010306 | Q22: 项
A23: ⑤事业运行 | B23: 489 | C23: 511 | D23: 494 | E23: 17 | F23: 0 | G23: 0 | H23: 524 | I23: 507 | J23: 17 | K23: 0 | L23: 0 | M23: 13 | N23: 35 | P23: 2010350 | Q23: 项
A24: 4.发展与改革事务 | B24: 1437 | C24: =SUM(C25:C30) -> 1060 | D24: 562 | E24: 55 | F24: 0 | G24: 443 | H24: 2601 | I24: 580 | J24: 62 | K24: 0 | L24: 1959 | M24: 1541 | N24: 1164 | P24: 20104 | Q24: 款
A25: ①行政运行 | B25: 278 | C25: =SUM(D25:G25) -> 252 | D25: 209 | E25: 43 | F25: 0 | G25: 0 | H25: 259 | I25: 209 | J25: 50 | K25: 0 | L25: 0 | M25: 7 | N25: -19 | P25: 2010401 | Q25: 项
A26: ②一般行政管理事务 | B26: 545 | C26: 443 | D26: 0 | E26: 0 | F26: 0 | G26: 443 | H26: 1940 | I26: 0 | J26: 0 | K26: 0 | L26: 1940 | M26: 1497 | N26: 1395 | P26: 2010402 | Q26: 项
A27: ③社会事业发展规划 | B27: 68 | C27: 0 | D27: 0 | E27: 0 | F27: 0 | H27: 0 | I27: 0 | J27: 0 | K27: 0 | L27: 0 | M27: 0 | N27: -68 | P27: 2010406 | Q27: 项
A28: ④物价管理 | C28: 0 | H28: 19 | I28: 0 | J28: 0 | K28: 0 | L28: 19 | M28: 19 | N28: 19 | P28: 2010408 | Q28: 项
A29: ⑤事业运行 | B29: 372 | C29: 365 | D29: 353 | E29: 12 | F29: 0 | G29: 0 | H29: 383 | I29: 371 | J29: 12 | K29: 0 | L29: 0 | M29: 18 | N29: 11 | P29: 2010450 | Q29: 项
A30: ⑥其他发展与改革事务支出 | B30: 174 | C30: 0 | H30: 0 | I30: 0 | J30: 0 | K30: 0 | L30: 0 | M30: 0 | N30: -174 | P30: 2010499 | Q30: 项
A31: 5.统计信息事务 | B31: 696 | C31: =SUM(C32:C36) -> 629 | D31: 435 | E31: 47 | F31: 0 | G31: 147 | H31: 611 | I31: 424 | J31: 43 | K31: 0 | L31: 144 | M31: -18 | N31: -85 | P31: 20105 | Q31: 款
A32: ①行政运行 | B32: 386 | C32: =SUM(D32:G32) -> 417 | D32: 374 | E32: 43 | F32: 0 | G32: 0 | H32: 406 | I32: 365 | J32: 41 | K32: 0 | L32: 0 | M32: -11 | N32: 20 | P32: 2010501 | Q32: 项
A33: ②一般行政管理事务 | B33: 14 | C33: 10 | D33: 0 | E33: 0 | F33: 0 | G33: 10 | H33: 10 | I33: 0 | J33: 0 | K33: 0 | L33: 10 | M33: 0 | N33: -4 | P33: 2010502 | Q33: 项
A34: ③专项统计业务 | B34: 103 | C34: 132 | D34: 0 | E34: 0 | F34: 0 | G34: 132 | H34: 134 | I34: 0 | J34: 0 | K34: 0 | L34: 134 | M34: 2 | N34: 31 | P34: 2010505 | Q34: 项
A35: ④专项普查活动 | B35: 135 | C35: 5 | D35: 0 | E35: 0 | F35: 0 | G35: 5 | H35: 0 | I35: 0 | J35: 0 | K35: 0 | L35: 0 | M35: -5 | N35: -135 | P35: 2010507 | Q35: 项
A36: ⑤事业运行 | B36: 58 | C36: 65 | D36: 61 | E36: 4 | F36: 0 | G36: 0 | H36: 61 | I36: 59 | J36: 2 | K36: 0 | L36: 0 | M36: -4 | N36: 3 | P36: 2010550 | Q36: 项
A37: 6.财政事务 | B37: 1345 | C37: =SUM(C38:C40) -> 1435 | D37: 993 | E37: 121 | F37: 0 | G37: 321 | H37: 1541 | I37: 1047 | J37: 118 | K37: 0 | L37: 376 | M37: 106 | N37: 196 | P37: 20106 | Q37: 款
A38: ①行政运行 | B38: 303 | C38: =SUM(D38:G38) -> 265 | D38: 184 | E38: 81 | F38: 0 | G38: 0 | H38: 287 | I38: 210 | J38: 77 | K38: 0 | L38: 0 | M38: 22 | N38: -16 | P38: 2010601 | Q38: 项
A39: ②一般行政管理事务 | B39: 187 | C39: 314 | D39: 0 | E39: 0 | F39: 0 | G39: 314 | H39: 370 | I39: 0 | J39: 0 | K39: 0 | L39: 370 | M39: 56 | N39: 183 | P39: 2010602 | Q39: 项
A40: ③事业运行 | B40: 855 | C40: 856 | D40: 809 | E40: 40 | F40: 0 | G40: 7 | H40: 884 | I40: 837 | J40: 41 | K40: 0 | L40: 6 | M40: 28 | N40: 29 | P40: 2010650 | Q40: 项
A41: 7.税收事务 | B41: 1752 | C41: =SUM(C42) -> 2500 | D41: 1650 | E41: 0 | F41: 0 | G41: 850 | H41: 2000 | I41: 1320 | J41: 0 | K41: 0 | L41: 680 | M41: -500 | N41: 248 | P41: 20107 | Q41: 款
A42: ①其他税收事务支出 | B42: 1752 | C42: =SUM(D42:G42) -> 2500 | D42: 1650 | E42: 0 | F42: 0 | G42: 850 | H42: 2000 | I42: 1320 | J42: 0 | K42: 0 | L42: 680 | M42: -500 | N42: 248 | P42: 2010799 | Q42: 项
A43: 8.审计事务 | B43: 406 | C43: =SUM(C44:C46) -> 459 | D43: 395 | E43: 45 | F43: 0 | G43: 19 | H43: 410 | I43: 346 | J43: 45 | K43: 0 | L43: 19 | M43: -49 | N43: 4 | P43: 20108 | Q43: 款
A44: ①行政运行 | B44: 157 | C44: 179 | D44: 141 | E44: 38 | F44: 0 | G44: 0 | H44: 149 | I44: 111 | J44: 38 | K44: 0 | L44: 0 | M44: -30 | N44: -8 | P44: 2010801 | Q44: 项
A45: ②事业运行 | B45: 230 | C45: 261 | D45: 254 | E45: 7 | F45: 0 | G45: 0 | H45: 242 | I45: 235 | J45: 7 | K45: 0 | L45: 0 | M45: -19 | N45: 12 | P45: 2010850 | Q45: 项
A46: ③其他审计事务支出 | B46: 19 | C46: 19 | D46: 0 | E46: 0 | F46: 0 | G46: 19 | H46: 19 | I46: 0 | J46: 0 | K46: 0 | L46: 19 | M46: 0 | N46: 0 | P46: 2010899 | Q46: 项
A47: 9.纪检监察事务 | B47: 2118 | C47: =SUM(C48:C52) -> 2116 | D47: 1555 | E47: 177 | F47: 0 | G47: 384 | H47: 2325 | I47: 1725 | J47: 180 | K47: 0 | L47: 420 | M47: 209 | N47: 207 | P47: 20111 | Q47: 款
A48: ①行政运行 | B48: 1409 | C48: =SUM(D48:G48) -> 1342 | D48: 1084 | E48: 153 | F48: 0 | G48: 105 | H48: 1440 | I48: 1244 | J48: 156 | K48: 0 | L48: 40 | M48: 98 | N48: 31 | P48: 2011101 | Q48: 项
A49: ②一般行政管理事务 | B49: 162 | C49: 146 | D49: 0 | E49: 0 | F49: 0 | G49: 146 | H49: 247 | I49: 0 | J49: 0 | K49: 0 | L49: 247 | M49: 101 | N49: 85 | P49: 2011102 | Q49: 项
A50: ③大案要案查处 | B50: 120 | C50: 120 | D50: 0 | E50: 0 | F50: 0 | G50: 120 | H50: 120 | I50: 0 | J50: 0 | K50: 0 | L50: 120 | M50: 0 | N50: 0 | P50: 2011104 | Q50: 项
A51: ④派驻派出机构 | B51: 0 | C51: 13 | D51: 0 | E51: 0 | F51: 0 | G51: 13 | H51: 13 | I51: 0 | J51: 0 | K51: 0 | L51: 13 | M51: 0 | N51: 13 | P51: 2011105 | Q51: 项
A52: ⑤事业运行 | B52: 427 | C52: 495 | D52: 471 | E52: 24 | F52: 0 | H52: 505 | I52: 481 | J52: 24 | K52: 0 | L52: 0 | M52: 10 | N52: 78 | P52: 2011150 | Q52: 项
A53: 10.商贸事务 | B53: 1084 | C53: =SUM(C54:C56) -> 1158 | D53: 778 | E53: 103 | F53: 0 | G53: 277 | H53: 1169 | I53: 805 | J53: 103 | K53: 0 | L53: 261 | M53: 11 | N53: 85 | P53: 20113 | Q53: 款
A54: ①行政运行 | B54: 405 | C54: =SUM(D54:G54) -> 393 | D54: 310 | E54: 81 | F54: 0 | G54: 2 | H54: 404 | I54: 321 | J54: 81 | K54: 0 | L54: 2 | M54: 11 | N54: -1 | P54: 2011301 | Q54: 项
A55: ②一般行政管理事务 | B55: 212 | C55: 275 | D55: 0 | F55: 0 | G55: 275 | H55: 259 | I55: 0 | J55: 0 | K55: 0 | L55: 259 | M55: -16 | N55: 47 | P55: 2011302 | Q55: 项
A56: ③事业运行 | B56: 467 | C56: 490 | D56: 468 | E56: 22 | F56: 0 | G56: 0 | H56: 506 | I56: 484 | J56: 22 | K56: 0 | L56: 0 | M56: 16 | N56: 39 | P56: 2011350 | Q56: 项
A57: 11.民族事务 | B57: 70 | C57: =SUM(C58) -> 70 | D57: 0 | E57: 0 | F57: 0 | G57: 70 | H57: 0 | I57: 0 | J57: 0 | K57: 0 | L57: 0 | M57: -70 | N57: -70 | P57: 20123 | Q57: 款
A58: ①一般行政管理事务 | B58: 70 | C58: =SUM(D58:G58) -> 70 | D58: 0 | E58: 0 | F58: 0 | G58: 70 | H58: 0 | I58: 0 | J58: 0 | K58: 0 | L58: 0 | M58: -70 | N58: -70 | P58: 2012302 | Q58: 项
A59: 12.港澳台事务 | B59: 72 | C59: =SUM(C60:C62) -> 159 | D59: 103 | E59: 13 | F59: 0 | G59: 43 | H59: 170 | I59: 102 | J59: 13 | K59: 0 | L59: 55 | M59: 11 | N59: 98 | P59: 20125 | Q59: 款
A60: ①行政运行 | B60: 59 | C60: 116 | D60: 103 | E60: 13 | F60: 0 | H60: 115 | I60: 102 | J60: 13 | K60: 0 | L60: 0 | M60: =H60-C60 -> -1 | N60: 56 | P60: 2012501 | Q60: 项
A61: ②一般行政管理事务 | B61: 13 | C61: 43 | D61: 0 | E61: 0 | F61: 0 | G61: 43 | H61: 55 | I61: 0 | J61: 0 | K61: 0 | L61: 55 | M61: 12 | N61: 42 | P61: 2012502 | Q61: 项
A62: ③其他港澳台事务支出 | C62: 0 | D62: 0 | E62: 0 | F62: 0 | H62: 0 | I62: 0 | J62: 0 | K62: 0 | L62: 0 | M62: 0 | N62: 0 | P62: 2012599 | Q62: 项
A63: 13.档案事务 | B63: 421 | C63: =SUM(C64:C65) -> 437 | D63: 313 | E63: 62 | F63: 0 | G63: 62 | H63: 444 | I63: 320 | J63: 62 | K63: 0 | L63: 62 | M63: 7 | N63: 23 | P63: 20126 | Q63: 款
A64: ①行政运行 | B64: 348 | C64: =SUM(D64:G64) -> 375 | D64: 313 | E64: 62 | F64: 0 | G64: 0 | H64: 382 | I64: 320 | J64: 62 | K64: 0 | L64: 0 | M64: 7 | N64: 34 | P64: 2012601 | Q64: 项
A65: ②一般行政管理事务 | B65: 73 | C65: 62 | D65: 0 | E65: 0 | F65: 0 | G65: 62 | H65: 62 | I65: 0 | J65: 0 | K65: 0 | L65: 62 | M65: 0 | N65: -11 | P65: 2012602 | Q65: 项
A66: 14.民主党派及工商联事务 | B66: 105 | C66: =SUM(C67:C68) -> 102 | D66: 74 | E66: 16 | F66: 0 | G66: 12 | H66: 101 | I66: 74 | J66: 15 | K66: 0 | L66: 12 | M66: -1 | N66: -4 | P66: 20128 | Q66: 款
A67: ①行政运行 | B67: 92 | C67: 90 | D67: 74 | E67: 16 | F67: 0 | G67: 0 | H67: 89 | I67: 74 | J67: 15 | K67: 0 | L67: 0 | M67: -1 | N67: -3 | P67: 2012801 | Q67: 项
A68: ②一般行政管理事务 | B68: 13 | C68: 12 | D68: 0 | E68: 0 | F68: 0 | G68: 12 | H68: 12 | I68: 0 | J68: 0 | K68: 0 | L68: 12 | M68: 0 | N68: -1 | P68: 2012802 | Q68: 项
A69: 15.群众团体事务 | B69: 1055 | C69: =SUM(C70:C72) -> 1067 | D69: 581 | E69: 243 | F69: 0 | G69: 243 | H69: 1069 | I69: 553 | J69: 241 | K69: 0 | L69: 275 | M69: 2 | N69: 14 | P69: 20129 | Q69: 款
A70: ①行政运行 | B70: 609 | C70: =SUM(D70:G70) -> 629 | D70: 393 | E70: 236 | F70: 0 | G70: 0 | H70: 611 | I70: 377 | J70: 234 | K70: 0 | L70: 0 | M70: -18 | N70: =H70-B70 -> 2 | P70: 2012901 | Q70: 项
A71: ②一般行政管理事务 | B71: 275 | C71: 243 | E71: 0 | F71: 0 | G71: 243 | H71: 275 | I71: 0 | J71: 0 | K71: 0 | L71: 275 | M71: 32 | N71: 0 | P71: 2012902 | Q71: 项
A72: ③事业运行 | B72: 171 | C72: 195 | D72: 188 | E72: 7 | F72: 0 | G72: 0 | H72: 183 | I72: 176 | J72: 7 | K72: 0 | L72: 0 | M72: -12 | N72: 12 | P72: 2012950 | Q72: 项
A73: 16.党委办公厅（室）及相关机构事务 | B73: 972 | C73: =SUM(C74:C76) -> 943 | D73: 499 | E73: 99 | F73: 0 | G73: 345 | H73: 986 | I73: 528 | J73: 99 | K73: 0 | L73: 359 | M73: 43 | N73: 14 | P73: 20131 | Q73: 款
A74: ①行政运行 | B74: 480 | C74: =SUM(D74:G74) -> 400 | D74: 308 | E74: 92 | F74: 0 | G74: 0 | H74: 443 | I74: 351 | J74: 92 | K74: 0 | L74: 0 | M74: 43 | N74: -37 | P74: 2013101 | Q74: 项
A75: ②一般行政管理事务 | B75: 314 | C75: 345 | D75: 0 | E75: 0 | F75: 0 | G75: 345 | H75: 365 | I75: 6 | J75: 0 | K75: 0 | L75: 359 | M75: 20 | N75: 51 | P75: 2013102 | Q75: 项
A76: ③事业运行 | B76: 178 | C76: 198 | D76: 191 | E76: 7 | F76: 0 | G76: 0 | H76: 178 | I76: 171 | J76: 7 | K76: 0 | L76: 0 | M76: -20 | N76: 0 | P76: 2013150 | Q76: 项
A77: 17.组织事务 | B77: 1201 | C77: =SUM(C78:C80) -> 1096 | D77: 442 | E77: 56 | F77: 0 | G77: 598 | H77: 1110 | I77: 451 | J77: 56 | K77: 0 | L77: 603 | M77: 14 | N77: -91 | P77: 20132 | Q77: 款
A78: ①行政运行 | B78: 403 | C78: =SUM(D78:G78) -> 456 | D78: 402 | E78: 54 | F78: 0 | G78: 0 | H78: 1075 | I78: 418 | J78: 54 | K78: 0 | L78: 603 | M78: 619 | N78: 672 | P78: 2013201 | Q78: 项
A79: ②一般行政管理事务 | B79: 762 | C79: 598 | D79: 0 | E79: 0 | F79: 0 | G79: 598 | H79: 0 | I79: 0 | J79: 0 | K79: 0 | L79: 0 | M79: -598 | N79: -762 | P79: 2013202 | Q79: 项
A80: ③事业运行 | B80: 36 | C80: 42 | D80: 40 | E80: 2 | F80: 0 | G80: 0 | H80: 35 | I80: 33 | J80: 2 | K80: 0 | L80: 0 | M80: -7 | N80: -1 | P80: 2013250 | Q80: 项
A81: 18.宣传事务 | B81: 1974 | C81: =SUM(C82:C84) -> 1787 | D81: 728 | E81: 59 | F81: 0 | G81: 1000 | H81: 1736 | I81: 700 | J81: 61 | K81: 0 | L81: 975 | M81: -51 | N81: -238 | P81: 20133 | Q81: 款
A82: ①行政运行 | B82: 628 | C82: =SUM(D82:G82) -> 583 | D82: 532 | E82: 51 | F82: 0 | G82: 0 | H82: 572 | I82: 518 | J82: 54 | K82: 0 | L82: 0 | M82: -11 | N82: -56 | P82: 2013301 | Q82: 项
A83: ②一般行政管理事务 | B83: 1060 | C83: 1000 | D83: 0 | F83: 0 | G83: 1000 | H83: 975 | I83: 0 | J83: 0 | K83: 0 | L83: 975 | M83: -25 | N83: -85 | P83: 2013302 | Q83: 项
A84: ③事业运行 | B84: 286 | C84: 204 | D84: 196 | E84: 8 | F84: 0 | G84: 0 | H84: 189 | I84: 182 | J84: 7 | K84: 0 | L84: 0 | M84: -15 | N84: -97 | P84: 2013350 | Q84: 项
A85: 19.统战事务 | B85: 498 | C85: =SUM(C86:C90) -> 520 | D85: 322 | E85: 51 | F85: 0 | G85: 147 | H85: 666 | I85: 307 | J85: 51 | K85: 0 | L85: 308 | M85: 146 | N85: 168 | P85: 20134 | Q85: 款
A86: ①行政运行 | B86: 247 | C86: =SUM(D86:G86) -> 266 | D86: 218 | E86: 46 | F86: 0 | G86: 2 | H86: 250 | I86: 202 | J86: 47 | K86: 0 | L86: 1 | M86: -16 | N86: 3 | P86: 2013401 | Q86: 项
A87: ②一般行政管理事务 | B87: 149 | C87: 118 | D87: 0 | F87: 0 | G87: 118 | H87: 209 | I87: 0 | J87: 0 | K87: 0 | L87: 209 | M87: 91 | N87: 60 | P87: 2013402 | Q87: 项
A88: ③宗教事务 | B88: 10 | C88: 20 | D88: 0 | E88: 0 | F88: 0 | G88: 20 | H88: 91 | I88: 0 | J88: 0 | K88: 0 | L88: 91 | M88: 71 | N88: 81 | P88: 2013404 | Q88: 项
A89: ④华侨事务 | B89: 7 | C89: 7 | D89: 0 | E89: 0 | F89: 0 | G89: 7 | H89: 7 | I89: 0 | J89: 0 | K89: 0 | L89: 7 | M89: 0 | N89: 0 | P89: 2013405 | Q89: 项
A90: ⑤事业运行 | B90: 85 | C90: 109 | D90: 104 | E90: 5 | F90: 0 | H90: 109 | I90: 105 | J90: 4 | K90: 0 | L90: 0 | M90: 0 | N90: 24 | P90: 2013450 | Q90: 项
A91: 20.其他共产党事务支出 | B91: 1033 | C91: =SUM(C92:C94) -> 1087 | D91: 751 | E91: 106 | F91: 0 | G91: 230 | H91: 1699 | I91: 840 | J91: 107 | K91: 0 | L91: 752 | M91: 612 | N91: 666 | P91: 20136 | Q91: 款
A92: ①行政运行 | B92: 653 | C92: =SUM(D92:G92) -> 566 | D92: 481 | E92: 85 | F92: 0 | H92: 590 | I92: 505 | J92: 85 | K92: 0 | L92: 0 | M92: 24 | N92: -63 | P92: 2013601 | Q92: 项
A93: ②一般行政管理事务 | B93: 153 | C93: 230 | D93: 0 | E93: 0 | F93: 0 | G93: 230 | H93: 752 | I93: 0 | J93: 0 | K93: 0 | L93: 752 | M93: 522 | N93: 599 | P93: 2013602 | Q93: 项
A94: ③事业运行 | B94: 227 | C94: 291 | D94: 270 | E94: 21 | F94: 0 | G94: 0 | H94: 357 | I94: 335 | J94: 22 | K94: 0 | L94: 0 | M94: 66 | N94: 130 | P94: 2013650 | Q94: 项
A95: 21.市场监督管理事务 | B95: 2357 | C95: =SUM(C96:C99) -> 2382 | D95: 1560 | E95: 294 | F95: 0 | G95: 528 | H95: 2775 | I95: 1962 | J95: 285 | K95: 0 | L95: 528 | M95: 393 | N95: 418 | P95: 20138 | Q95: 款
A96: ①行政运行 | B96: 1819 | C96: =SUM(D96:G96) -> 1599 | D96: 1314 | E96: 285 | F96: 0 | G96: 0 | H96: 1867 | I96: 1597 | J96: 270 | K96: 0 | L96: 0 | M96: 268 | N96: 48 | P96: 2013801 | Q96: 项
A97: ②一般行政管理事务 | B97: 112 | C97: 268 | D97: 0 | E97: 0 | F97: 0 | G97: 268 | H97: 268 | I97: 0 | J97: 0 | K97: 0 | L97: 268 | M97: 0 | N97: 156 | P97: 2013802 | Q97: 项
A98: ③食品安全监管 | B98: 197 | C98: 260 | D98: 0 | E98: 0 | F98: 0 | G98: 260 | H98: 260 | I98: 0 | J98: 0 | K98: 0 | L98: 260 | M98: 0 | N98: 63 | P98: 2013816 | Q98: 项
A99: ④事业运行 | B99: 229 | C99: 255 | D99: 246 | E99: 9 | F99: 0 | G99: 0 | H99: 380 | I99: 365 | J99: 15 | K99: 0 | L99: 0 | M99: 125 | N99: 151 | P99: 2013850 | Q99: 项
A100: 22.社会工作事务 | B100: 0 | C100: =SUM(C101:C105) -> 3300 | D100: 3024 | E100: 201 | F100: 0 | G100: 75 | H100: 3607 | I100: 3244 | J100: 201 | K100: 0 | L100: 162 | M100: 307 | N100: 3607 | P100: 20139 | Q100: 款
A101: ①行政运行 | B101: 0 | C101: =SUM(D101:G101) -> 0 | H101: 2 | I101: 2 | J101: 0 | K101: 0 | L101: 0 | M101: 2 | N101: 2 | P101: 2013901 | Q101: 项
A102: ②一般行政管理事务 | B102: 0 | C102: 75 | G102: 75 | H102: 0 | I102: 0 | J102: 0 | K102: 0 | L102: 0 | M102: -75 | N102: 0 | P102: 2013902 | Q102: 项
A103: ③专项业务 | B103: 0 | C103: 3225 | D103: 3024 | E103: 201 | H103: 3502 | I103: 3241 | J103: 201 | K103: 0 | L103: 60 | M103: 277 | N103: 3502 | P103: 2013904 | Q103: 项
A104: ④事业运行 | B104: 0 | C104: 0 | H104: 1 | I104: 1 | J104: 0 | K104: 0 | L104: 0 | M104: 1 | N104: 1 | P104: 2013950 | Q104: 项
A105: ⑤其他社会工作事务支出 | B105: 0 | C105: 0 | H105: 102 | I105: 0 | J105: 0 | K105: 0 | L105: 102 | M105: 102 | N105: 102 | P105: 2013999 | Q105: 项
A106: 23.信访事务 | B106: 214 | C106: =SUM(C107:C108) -> 216 | D106: 153 | E106: 26 | F106: 0 | G106: 37 | H106: 219 | I106: 157 | J106: 25 | K106: 0 | L106: 37 | M106: 3 | N106: 5 | P106: 20140 | Q106: 款
A107: ①行政运行 | B107: 187 | C107: =SUM(D107:G107) -> 216 | D107: 153 | E107: 26 | F107: 0 | G107: 37 | H107: 219 | I107: 157 | J107: 25 | K107: 0 | L107: 37 | M107: =H107-C107 -> 3 | N107: 32 | P107: 2014001 | Q107: 项
A108: ②一般行政管理事务 | B108: 27 | C108: 0 | H108: 0 | I108: 0 | J108: 0 | K108: 0 | L108: 0 | M108: 0 | N108: -27 | P108: 2014002 | Q108: 项
A109: 二、国防支出 | B109: 537 | C109: =SUM(C110) -> 558 | D109: 99 | E109: 9 | F109: 0 | G109: 450 | H109: 562 | I109: 107 | J109: 5 | K109: 0 | L109: 450 | M109: 4 | N109: 25 | P109: 203 | Q109: 类
A110: 1.国防动员 | B110: 537 | C110: =SUM(C111:C112) -> 558 | D110: 99 | E110: 9 | F110: 0 | G110: 450 | H110: 562 | I110: 107 | J110: 5 | K110: 0 | L110: 450 | M110: 4 | N110: =H110-B110 -> 25 | P110: 20306 | Q110: 款
A111: ①兵役征集 | B111: 60 | C111: 60 | D111: 0 | E111: 0 | F111: 0 | G111: 60 | H111: 60 | I111: 0 | J111: 0 | K111: 0 | L111: 60 | M111: 0 | N111: 0 | P111: 2030601 | Q111: 项
A112: ②民兵 | B112: 477 | C112: 498 | D112: 99 | E112: 9 | F112: 0 | G112: 390 | H112: 502 | I112: 107 | J112: 5 | K112: 0 | L112: 390 | M112: 4 | N112: 25 | P112: 2030607 | Q112: 项
A113: 三、公共安全支出 | B113: 6654 | C113: =SUM(C114,C118,C120,C124,C134) -> 7061 | D113: 3708 | E113: 1017 | F113: 0 | G113: 2336 | H113: 7799 | I113: 3841 | J113: 1011 | K113: 0 | L113: 2947 | M113: 738 | N113: 1145 | P113: 204 | Q113: 类
A114: 1.公安 | B114: 4103 | C114: =SUM(C115:C117) -> 4600 | D114: 2904 | E114: 896 | F114: 0 | G114: 800 | H114: 5021 | I114: 2904 | J114: 896 | K114: 0 | L114: 1221 | M114: 421 | N114: 918 | P114: 20402 | Q114: 款
A115: ①行政运行 | C115: =SUM(D115:G115) -> 0 | H115: 2400 | I115: 2400 | J115: 0 | K115: 0 | L115: 0 | M115: 2400 | N115: 2400 | P115: 2040201 | Q115: 项
A116: ②执法办案 | C116: 0 | H116: 800 | I116: 0 | J116: 0 | K116: 0 | L116: 800 | M116: 800 | N116: 800 | P116: 2040220 | Q116: 项
A117: ③其他公安支出 | B117: 4103 | C117: 4600 | D117: 2904 | E117: 896 | F117: 0 | G117: 800 | H117: 1821 | I117: 504 | J117: 896 | K117: 0 | L117: 421 | M117: -2779 | N117: -2282 | P117: 2040299 | Q117: 项
A118: 2.检察 | B118: 24 | C118: =SUM(C119:C119) -> 24 | D118: 0 | E118: 0 | F118: 0 | G118: 24 | H118: 24 | I118: 0 | J118: 0 | K118: 0 | L118: 24 | M118: 0 | N118: 0 | P118: 20404 | Q118: 款
A119: ①一般行政管理事务 | B119: 24 | C119: =SUM(D119:G119) -> 24 | D119: 0 | E119: 0 | F119: 0 | G119: 24 | H119: 24 | I119: 0 | J119: 0 | K119: 0 | L119: 24 | M119: 0 | N119: 0 | P119: 2040402 | Q119: 项
A120: 3.法院 | B120: 307 | C120: =SUM(C121:C123) -> 107 | D120: 0 | E120: 0 | F120: 0 | G120: 107 | H120: 907 | I120: 0 | J120: 0 | K120: 0 | L120: 907 | M120: 800 | N120: 600 | P120: 20405 | Q120: 款
A121: ①行政运行 | B121: 87 | C121: 87 | D121: 0 | E121: 0 | F121: 0 | G121: 87 | H121: 87 | I121: 0 | J121: 0 | K121: 0 | L121: 87 | M121: 0 | N121: 0 | P121: 2040501 | Q121: 项
A122: ②一般行政管理事务 | B122: 20 | C122: 20 | E122: 0 | F122: 0 | G122: 20 | H122: 20 | I122: 0 | J122: 0 | K122: 0 | L122: 20 | M122: 0 | N122: 0 | P122: 2040502 | Q122: 项
A123: ③其他法院支出 | B123: 200 | C123: 0 | D123: 0 | E123: 0 | F123: 0 | G123: 0 | H123: 800 | I123: 0 | J123: 0 | K123: 0 | L123: 800 | M123: 800 | N123: 600 | P123: 2040599 | Q123: 项
A124: 4.司法 | B124: 1369 | C124: =SUM(C125:C133) -> 1202 | D124: 804 | E124: 121 | F124: 0 | G124: 277 | H124: 1331 | I124: 937 | J124: 115 | K124: 0 | L124: 279 | M124: 129 | N124: -38 | P124: 20406 | Q124: 款
A125: ①行政运行 | B125: 969 | C125: =SUM(D125:G125) -> 828 | D125: 721 | E125: 107 | F125: 0 | G125: 0 | H125: 956 | I125: 854 | J125: 102 | K125: 0 | L125: 0 | M125: 128 | N125: -13 | P125: 2040601 | Q125: 项
A126: ②一般行政管理事务 | C126: 0 | D126: 0 | E126: 0 | F126: 0 | H126: 4 | I126: 0 | J126: 0 | K126: 0 | L126: 4 | M126: 4 | N126: 4 | P126: 2040602 | Q126: 项
A127: ③基层司法业务 | B127: 55 | C127: 50 | D127: 0 | E127: 0 | F127: 0 | G127: 50 | H127: 50 | I127: 0 | J127: 0 | K127: 0 | L127: 50 | M127: 0 | N127: -5 | P127: 2040604 | Q127: 项
A128: ④普法宣传 | B128: 43 | C128: 43 | D128: 0 | E128: 0 | F128: 0 | G128: 43 | H128: 43 | I128: 0 | J128: 0 | K128: 0 | L128: 43 | M128: 0 | N128: 0 | P128: 2040605 | Q128: 项
A129: ⑤公共法律服务 | B129: 123 | C129: 122 | D129: 83 | E129: 14 | F129: 0 | G129: 25 | H129: 121 | I129: 83 | J129: 13 | K129: 0 | L129: 25 | M129: -1 | N129: -2 | P129: 2040607 | Q129: 项
A130: ⑥社区矫正 | B130: 91 | C130: 84 | D130: 0 | E130: 0 | F130: 0 | G130: 84 | H130: 82 | I130: 0 | J130: 0 | K130: 0 | L130: 82 | M130: -2 | N130: -9 | P130: 2040610 | Q130: 项
A131: ⑦法治建设 | B131: 55 | C131: 55 | D131: 0 | E131: 0 | F131: 0 | G131: 55 | H131: 75 | I131: 0 | J131: 0 | K131: 0 | L131: 75 | M131: 20 | N131: 20 | P131: 2040612 | Q131: 项
A132: ⑧信息化建设 | B132: 7 | C132: 0 | D132: 0 | E132: 0 | F132: 0 | H132: 0 | I132: 0 | J132: 0 | K132: 0 | L132: 0 | M132: 0 | N132: -7 | P132: 2040613 | Q132: 项
A133: ⑨其他司法支出 | B133: 26 | C133: 20 | D133: 0 | E133: 0 | F133: 0 | G133: 20 | H133: 0 | I133: 0 | J133: 0 | K133: 0 | L133: 0 | M133: -20 | N133: -26 | P133: 2040699 | Q133: 项
A134: 5.其他公共安全支出 | B134: 851 | C134: =SUM(C135) -> 1128 | D134: 0 | E134: 0 | F134: 0 | G134: 1128 | H134: 516 | I134: 0 | J134: 0 | K134: 0 | L134: 516 | M134: -612 | N134: -335 | P134: 20499 | Q134: 款
A135: ①其他公共安全支出 | B135: 851 | C135: =SUM(D135:G135) -> 1128 | D135: 0 | E135: 0 | F135: 0 | G135: 1128 | H135: 516 | I135: 0 | J135: 0 | K135: 0 | L135: 516 | M135: -612 | N135: -335 | P135: 2049999 | Q135: 项
A136: 四、教育支出 | B136: 85067 | C136: =SUM(C137,C140,C146,C148,C150,C153,C156,C160) -> 85091 | D136: 64116 | E136: 9548 | F136: 0 | G136: 11427 | H136: 90792 | I136: 67772 | J136: 9754 | K136: 0 | L136: 13266 | M136: 5701 | N136: 5725 | P136: 205 | Q136: 类
A137: 1.教育管理事务 | B137: 1336 | C137: =SUM(C138:C139) -> 1319 | D137: 952 | E137: 267 | F137: 0 | G137: 100 | H137: 1179 | I137: 953 | J137: 226 | K137: 0 | L137: 0 | M137: -140 | N137: -157 | P137: 20501 | Q137: 款
A138: ①行政运行 | B138: 290 | C138: 384 | D138: 151 | E138: 233 | F138: 0 | G138: 0 | H138: 318 | I138: 125 | J138: 193 | K138: 0 | L138: 0 | M138: -66 | N138: 28 | P138: 2050101 | Q138: 项
A139: ②其他教育管理事务支出 | B139: 1046 | C139: 935 | D139: 801 | E139: 34 | F139: 0 | G139: 100 | H139: 861 | I139: 828 | J139: 33 | K139: 0 | L139: 0 | M139: -74 | N139: -185 | P139: 2050199 | Q139: 项
A140: 2.普通教育 | B140: 77824 | C140: =SUM(C141:C145) -> 77045 | D140: 59469 | E140: 8257 | F140: 0 | G140: 9319 | H140: 82836 | I140: 63205 | J140: 8492 | K140: 0 | L140: 11139 | M140: 5791 | N140: 5012 | P140: 20502 | Q140: 款
A141: ①学前教育 | B141: 8267 | C141: =SUM(D141:G141) -> 7676 | D141: 5310 | E141: 1942 | F141: 0 | G141: 424 | H141: 7914 | I141: 5581 | J141: 1959 | K141: 0 | L141: 374 | M141: 238 | N141: -353 | P141: 2050201 | Q141: 项
A142: ②小学教育 | B142: 36858 | C142: 33457 | D142: 29352 | E142: 3717 | F142: 0 | G142: 388 | H142: 35781 | I142: 31672 | J142: 3796 | K142: 0 | L142: 313 | M142: 2324 | N142: -1077 | P142: 2050202 | Q142: 项
A143: ③初中教育 | B143: 22078 | C143: 23833 | D143: 20147 | E143: 1486 | F143: 0 | G143: 2200 | H143: 22974 | I143: 21061 | J143: 1585 | K143: 0 | L143: 328 | M143: -859 | N143: 896 | P143: 2050203 | Q143: 项
A144: ④高中教育 | B144: 5414 | C144: 5382 | D144: 4660 | E144: 714 | F144: 0 | G144: 8 | H144: 5695 | I144: 4891 | J144: 736 | K144: 0 | L144: 68 | M144: 313 | N144: 281 | P144: 2050204 | Q144: 项
A145: ⑤其他普通教育支出 | B145: 5207 | C145: 6697 | E145: 398 | F145: 0 | G145: 6299 | H145: 10472 | I145: 0 | J145: 416 | K145: 0 | L145: 10056 | M145: 3775 | N145: 5265 | P145: 2050299 | Q145: 项
A146: 3.职业教育 | B146: 696 | C146: =SUM(C147) -> 1979 | D146: 1655 | E146: 324 | F146: 0 | G146: 0 | H146: 1853 | I146: 1498 | J146: 355 | K146: 0 | L146: 0 | M146: -126 | N146: 1157 | P146: 20503 | Q146: 款
A147: ①中等职业教育 | B147: 696 | C147: =SUM(D147:G147) -> 1979 | D147: 1655 | E147: 324 | F147: 0 | H147: 1853 | I147: 1498 | J147: 355 | K147: 0 | L147: 0 | M147: -126 | N147: 1157 | P147: 2050302 | Q147: 项
A148: 4.成人教育 | B148: 339 | C148: =SUM(C149) -> 336 | D148: 311 | E148: 25 | F148: 0 | G148: 0 | H148: 341 | I148: 316 | J148: 25 | K148: 0 | L148: 0 | M148: 5 | N148: 2 | P148: 20504 | Q148: 款
A149: ①其他成人教育支出 | B149: 339 | C149: 336 | D149: 311 | E149: 25 | F149: 0 | G149: 0 | H149: 341 | I149: 316 | J149: 25 | K149: 0 | L149: 0 | M149: 5 | N149: 2 | P149: 2050499 | Q149: 项
A150: 5.特殊教育 | B150: 986 | C150: =SUM(C151:C152) -> 967 | D150: 819 | E150: 124 | F150: 0 | G150: 24 | H150: 1006 | I150: 881 | J150: 125 | K150: 0 | L150: 0 | M150: 39 | N150: 20 | P150: 20507 | Q150: 款
A151: ①特殊学校教育 | B151: 986 | C151: 967 | D151: 819 | E151: 124 | F151: 0 | G151: 24 | H151: 1003 | I151: 881 | J151: 122 | K151: 0 | L151: 0 | M151: 36 | N151: 17 | P151: 2050701 | Q151: 项
A152: ②其他特殊教育支出 | C152: 0 | H152: 3 | I152: 0 | J152: 3 | K152: 0 | L152: 0 | M152: 3 | N152: 3 | P152: 2050799 | Q152: 项
A153: 6.进修及培训 | B153: 1406 | C153: =SUM(C154:C155) -> 1099 | D153: 910 | E153: 65 | F153: 0 | G153: 124 | H153: 1103 | I153: 919 | J153: 65 | K153: 0 | L153: 119 | M153: 4 | N153: -303 | P153: 20508 | Q153: 款
A154: ①教师进修 | B154: 1154 | C154: =SUM(D154:G154) -> 806 | D154: 763 | E154: 43 | F154: 0 | G154: 0 | H154: 823 | I154: 780 | J154: 43 | K154: 0 | L154: 0 | M154: 17 | N154: -331 | P154: 2050801 | Q154: 项
A155: ②干部教育 | B155: 252 | C155: 293 | D155: 147 | E155: 22 | F155: 0 | G155: 124 | H155: 280 | I155: 139 | J155: 22 | K155: 0 | L155: 119 | M155: -13 | N155: 28 | P155: 2050802 | Q155: 项
A156: 7.教育费附加安排的支出 | B156: 2400 | C156: =SUM(C157:C159) -> 2346 | D156: 0 | E156: 486 | F156: 0 | G156: 1860 | H156: 2346 | I156: 0 | J156: 466 | K156: 0 | L156: 1880 | M156: 0 | N156: -54 | P156: 20509 | Q156: 款
A157: ①城市中小学教学设施 | B157: 0 | C157: 0 | H157: 900 | I157: 0 | J157: 0 | K157: 0 | L157: 900 | M157: 900 | N157: 900 | P157: 2050904 | Q157: 项
A158: ②中等职业学校教学设施 | B158: 0 | C158: 486 | E158: 486 | H158: 466 | I158: 0 | J158: 466 | K158: 0 | L158: 0 | M158: -20 | N158: 466 | P158: 2050905 | Q158: 项
A159: ③其他教育费附加安排的支出 | B159: 2400 | C159: 1860 | D159: 0 | E159: 0 | F159: 0 | G159: 1860 | H159: 980 | I159: 0 | J159: 0 | K159: 0 | L159: 980 | M159: -880 | N159: -1420 | P159: 2050999 | Q159: 项
A160: 8.其他教育支出 | B160: 80 | C160: =SUM(C161) -> 0 | D160: 0 | E160: 0 | F160: 0 | G160: 0 | H160: 128 | I160: 0 | J160: 0 | K160: 0 | L160: 128 | M160: 128 | N160: 48 | P160: 20599 | Q160: 款
A161: ①其他教育支出 | B161: 80 | C161: =SUM(D161:G161) -> 0 | D161: 0 | E161: 0 | F161: 0 | H161: 128 | I161: 0 | J161: 0 | K161: 0 | L161: 128 | M161: 128 | N161: 48 | P161: 2059999 | Q161: 项
A162: 五、科学技术支出 | B162: 2849 | C162: =SUM(C163,C166,C168,C171) -> 2979 | D162: 738 | E162: 121 | F162: 0 | G162: 2120 | H162: 2979 | I162: 688 | J162: 120 | K162: 0 | L162: 2171 | M162: 0 | N162: 130 | P162: 206 | Q162: 类
A163: 1.科学技术管理事务 | B163: 318 | C163: =SUM(C164:C165) -> 298 | D163: 247 | E163: 43 | F163: 0 | G163: 8 | H163: 357 | I163: 251 | J163: 40 | K163: 0 | L163: 66 | M163: 59 | N163: 39 | P163: 20601 | Q163: 款
A164: ①行政运行 | B164: 182 | C164: 149 | D164: 103 | E164: 38 | F164: 0 | G164: 8 | H164: 204 | I164: 103 | J164: 35 | K164: 0 | L164: 66 | M164: 55 | N164: 22 | P164: 2060101 | Q164: 项
A165: ②其他科学技术管理事务支出 | B165: 136 | C165: 149 | D165: 144 | E165: 5 | F165: 0 | G165: 0 | H165: 153 | I165: 148 | J165: 5 | K165: 0 | L165: 0 | M165: 4 | N165: 17 | P165: 2060199 | Q165: 项
A166: 2.技术研究与开发 | B166: 1710 | C166: =SUM(C167) -> 1860 | D166: 0 | E166: 0 | F166: 0 | G166: 1860 | H166: 1853 | I166: 0 | J166: 0 | K166: 0 | L166: 1853 | M166: -7 | N166: 143 | P166: 20604 | Q166: 款
A167: ①其他技术研究与开发支出 | B167: 1710 | C167: =SUM(D167:G167) -> 1860 | D167: 0 | E167: 0 | F167: 0 | G167: 1860 | H167: 1853 | I167: 0 | J167: 0 | K167: 0 | L167: 1853 | M167: -7 | N167: 143 | P167: 2060499 | Q167: 项
A168: 3.科学技术普及 | B168: 305 | C168: =SUM(C169:C170) -> 312 | D168: 143 | E168: 21 | F168: 0 | G168: 148 | H168: 300 | I168: 128 | J168: 24 | K168: 0 | L168: 148 | M168: -12 | N168: -5 | P168: 20607 | Q168: 款
A169: ①机构运行 | B169: 157 | C169: 164 | D169: 143 | E169: 21 | F169: 0 | G169: 0 | H169: 152 | I169: 128 | J169: 24 | K169: 0 | L169: 0 | M169: -12 | N169: -5 | P169: 2060701 | Q169: 项
A170: ②科普活动 | B170: 148 | C170: 148 | D170: 0 | E170: 0 | F170: 0 | G170: 148 | H170: 148 | I170: 0 | J170: 0 | K170: 0 | L170: 148 | M170: 0 | N170: 0 | P170: 2060702 | Q170: 项
A171: 4.其他科学技术支出 | B171: 516 | C171: =SUM(C172) -> 509 | D171: 348 | E171: 57 | F171: 0 | G171: 104 | H171: 469 | I171: 309 | J171: 56 | K171: 0 | L171: 104 | M171: -40 | N171: -47 | P171: 20699 | Q171: 款
A172: ①其他科学技术支出 | B172: 516 | C172: =SUM(D172:G172) -> 509 | D172: 348 | E172: 57 | F172: 0 | G172: 104 | H172: 469 | I172: 309 | J172: 56 | K172: 0 | L172: 104 | M172: =H172-C172 -> -40 | N172: -47 | P172: 2069999 | Q172: 项
A173: 六、文化旅游体育与传媒支出 | B173: 3337 | C173: =SUM(C174,C182,C184,C186) -> 3643 | D173: 911 | E173: 304 | F173: 0 | G173: 2428 | H173: 2981 | I173: 873 | J173: 315 | K173: 0 | L173: 1793 | M173: -662 | N173: -356 | P173: 207 | Q173: 类
A174: 1.文化和旅游 | B174: 1692 | C174: =SUM(C175:C181) -> 1973 | D174: 648 | E174: 275 | F174: 0 | G174: 1050 | H174: 1333 | I174: 632 | J174: 286 | K174: 0 | L174: 415 | M174: -640 | N174: =H174-B174 -> -359 | P174: 20701 | Q174: 款
A175: ①行政运行 | B175: 211 | C175: 162 | D175: 138 | E175: 24 | F175: 0 | G175: 0 | H175: 183 | I175: 148 | J175: 35 | K175: 0 | L175: 0 | M175: 21 | N175: -28 | P175: 2070101 | Q175: 项
A176: ②一般行政管理事务 | B176: 159 | C176: 340 | E176: 0 | F176: 0 | G176: 340 | H176: 152 | I176: 0 | J176: 0 | K176: 0 | L176: 152 | M176: -188 | N176: -7 | P176: 2070102 | Q176: 项
A177: ③图书馆 | B177: 402 | C177: 726 | D177: 130 | E177: 236 | F177: 0 | G177: 360 | H177: 433 | I177: 134 | J177: 236 | K177: 0 | L177: 63 | M177: -293 | N177: 31 | P177: 2070104 | Q177: 项
A178: ④群众文化 | B178: 207 | C178: 114 | D178: 79 | E178: 5 | F178: 0 | G178: 30 | H178: 115 | I178: 80 | J178: 5 | K178: 0 | L178: 30 | M178: 1 | N178: -92 | P178: 2070109 | Q178: 项
A179: ⑤文化创作与保护 | B179: 25 | C179: 20 | D179: 0 | E179: 0 | F179: 0 | G179: 20 | H179: 70 | I179: 0 | J179: 0 | K179: 0 | L179: 70 | M179: 50 | N179: 45 | P179: 2070111 | Q179: 项
A180: ⑥文化和旅游市场管理 | B180: 287 | C180: 311 | D180: 301 | E180: 10 | F180: 0 | G180: 0 | H180: 280 | I180: 270 | J180: 10 | K180: 0 | L180: 0 | M180: -31 | N180: -7 | P180: 2070112 | Q180: 项
A181: ⑦其他文化和旅游支出 | B181: 401 | C181: 300 | D181: 0 | E181: 0 | F181: 0 | G181: 300 | H181: 100 | I181: 0 | J181: 0 | K181: 0 | L181: 100 | M181: -200 | N181: -301 | P181: 2070199 | Q181: 项
A182: 2.文物 | B182: 1057 | C182: =SUM(C183) -> 1000 | D182: 0 | E182: 0 | F182: 0 | G182: 1000 | H182: 1000 | I182: 0 | J182: 0 | K182: 0 | L182: 1000 | M182: 0 | N182: -57 | P182: 20702 | Q182: 款
A183: ①文物保护 | B183: 1057 | C183: =SUM(D183:G183) -> 1000 | D183: 0 | E183: 0 | F183: 0 | G183: 1000 | H183: 1000 | I183: 0 | J183: 0 | K183: 0 | L183: 1000 | M183: 0 | N183: -57 | P183: 2070204 | Q183: 项
A184: 3.体育 | B184: 99 | C184: =SUM(C185:C185) -> 211 | D184: 0 | E184: 0 | F184: 0 | G184: 211 | H184: 211 | I184: 0 | J184: 0 | K184: 0 | L184: 211 | M184: 0 | N184: 112 | P184: 20703 | Q184: 款
A185: ①群众体育 | B185: 99 | C185: 211 | D185: 0 | E185: 0 | F185: 0 | G185: 211 | H185: 211 | I185: 0 | J185: 0 | K185: 0 | L185: 211 | M185: 0 | N185: 112 | P185: 2070308 | Q185: 项
A186: 4.其他文化旅游体育与传媒支出 | B186: 489 | C186: =SUM(C187:C188) -> 459 | D186: 263 | E186: 29 | F186: 0 | G186: 167 | H186: 437 | I186: 241 | J186: 29 | K186: 0 | L186: 167 | M186: -22 | N186: -52 | P186: 20799 | Q186: 款
A187: ①文化产业发展专项支出 | B187: 30 | C187: 0 | H187: 0 | I187: 0 | J187: 0 | K187: 0 | L187: 0 | M187: 0 | N187: -30 | P187: 2079903 | Q187: 项
A188: ②其他文化旅游体育与传媒支出 | B188: 459 | C188: 459 | D188: 263 | E188: 29 | F188: 0 | G188: 167 | H188: 437 | I188: 241 | J188: 29 | K188: 0 | L188: 167 | M188: -22 | N188: -22 | P188: 2079999 | Q188: 项
A189: 七、社会保障和就业支出 | B189: 50108 | C189: =SUM(C190,C198,C206,C215,C223,C229,C234,C241,C247,C251,C253,C255,C257,C259,C262,C267,C269) -> 48605 | D189: 24970 | E189: 271 | F189: 0 | G189: 23364 | H189: 47275 | I189: 26253 | J189: 273 | K189: 0 | L189: 20749 | M189: -1330 | N189: -2833 | P189: 208 | Q189: 类
A190: 1.人力资源和社会保障管理事务 | B190: 4063 | C190: =SUM(C191:C197) -> 2911 | D190: 1895 | E190: 92 | F190: 0 | G190: 924 | H190: 2732 | I190: 1903 | J190: 93 | K190: 0 | L190: 736 | M190: -179 | N190: -1331 | P190: 20801 | Q190: 款
A191: ①行政运行 | B191: 313 | C191: =SUM(D191:G191) -> 411 | D191: 357 | E191: 54 | F191: 0 | G191: 0 | H191: 415 | I191: 361 | J191: 54 | K191: 0 | L191: 0 | M191: 4 | N191: 102 | P191: 2080101 | Q191: 项
A192: ②一般行政管理事务 | B192: 37 | C192: 60 | D192: 0 | E192: 0 | F192: 0 | G192: 60 | H192: 54 | I192: 0 | J192: 0 | K192: 0 | L192: 54 | M192: -6 | N192: 17 | P192: 2080102 | Q192: 项
A193: ③劳动保障监察 | B193: 114 | C193: 0 | F193: 0 | G193: 0 | H193: 0 | I193: 0 | J193: 0 | K193: 0 | L193: 0 | M193: 0 | N193: -114 | P193: 2080105 | Q193: 项
A194: ④就业管理事务 | B194: 1443 | C194: 1342 | D194: 1236 | E194: 20 | F194: 0 | G194: 86 | H194: 1530 | I194: 1223 | J194: 21 | K194: 0 | L194: 286 | M194: 188 | N194: 87 | P194: 2080106 | Q194: 项
A195: ⑤社会保险经办机构 | B195: 166 | C195: 268 | D195: 230 | E195: 15 | F195: 0 | G195: 23 | H195: 273 | I195: 240 | J195: 15 | K195: 0 | L195: 18 | M195: 5 | N195: 107 | P195: 2080109 | Q195: 项
A196: ⑥劳动人事争议调解仲裁 | B196: 75 | C196: 75 | D196: 72 | E196: 3 | F196: 0 | G196: 0 | H196: 82 | I196: 79 | J196: 3 | K196: 0 | L196: 0 | M196: 7 | N196: 7 | P196: 2080112 | Q196: 项
A197: ⑦其他人力资源和社会保障管理事务支出 | B197: 1915 | C197: 755 | D197: 0 | E197: 0 | F197: 0 | G197: 755 | H197: 378 | I197: 0 | J197: 0 | K197: 0 | L197: 378 | M197: -377 | N197: -1537 | P197: 2080199 | Q197: 项
A198: 2.民政管理事务 | B198: 4039 | C198: =SUM(C199:C205) -> 858 | D198: 445 | E198: 49 | F198: 0 | G198: 364 | H198: 744 | I198: 438 | J198: 49 | K198: 0 | L198: 257 | M198: -114 | N198: -3295 | P198: 20802 | Q198: 款
A199: ①行政运行 | B199: 255 | C199: =SUM(D199:G199) -> 230 | D199: 187 | E199: 42 | F199: 0 | G199: 1 | H199: 220 | I199: 178 | J199: 41 | K199: 0 | L199: 1 | M199: -10 | N199: -35 | P199: 2080201 | Q199: 项
A200: ②一般行政管理事务 | B200: 85 | C200: 303 | D200: 47 | E200: 0 | F200: 0 | G200: 256 | H200: 69 | I200: 47 | J200: 0 | K200: 0 | L200: 22 | M200: -234 | N200: -16 | P200: 2080202 | Q200: 项
... 205 more rows

Sheet 附表三
A1: 附表三
A2: 2025年一般公共预算支出经济分类调整预算情况表
E3: 单位：万元
A4: 项 目 | B4: 年初 预算数 | C4: 调整 预算数 | D4: 比年初预 算数增减 | E4: 备注
A5: 合 计 | B5: =SUM(B6,B11,B22,B30,B37,B41,B44,B48,B53,B59,B63,B68,B71,B78,B81) -> 262300 | C5: 263740 | D5: =C5-B5 -> 1440
A6: 一、机关工资福利支出 | B6: =SUM(B7:B10) -> 18459 | C6: 20951 | D6: 2492
A7: 工资奖金津补贴 | B7: 11670 | C7: 11817 | D7: 147
A8: 社会保障缴费 | B8: 2258 | C8: 2322 | D8: 64
A9: 住房公积金 | B9: 1262 | C9: 1258 | D9: -4
A10: 其他工资福利支出 | B10: 3269 | C10: 5554 | D10: 2285
A11: 二、机关商品和服务支出 | B11: =SUM(B12:B21) -> 23786 | C11: 36434 | D11: 12648
A12: 办公经费 | B12: 4760 | C12: 4043 | D12: -717
A13: 会议费 | B13: 132 | C13: 54 | D13: -78
A14: 培训费 | B14: 156 | C14: 150 | D14: -6
A15: 专用材料购置费 | B15: 170 | C15: 168 | D15: -2
A16: 委托业务费 | B16: 7231 | C16: 5992 | D16: -1239
A17: 公务接待费 | B17: 99 | C17: 130 | D17: 31
A18: 因公出国（境）费用 | B18: 125 | C18: 64 | D18: -61
A19: 公务用车运行维护费 | B19: 138 | C19: 106 | D19: -32
A20: 维修（护）费 | B20: 232 | C20: 358 | D20: 126
A21: 其他商品和服务支出 | B21: =13449-2706 -> 10743 | C21: 25369 | D21: 14626
A22: 三、机关资本性支出（一） | B22: =SUM(B23:B29) -> 11894 | C22: 20099 | D22: 8205
A23: 房屋建筑物购建 | C23: 0 | D23: 0
A24: 基础设施建设 | B24: 3606 | C24: 3313 | D24: -293
A25: 公务用车购置 | B25: 14 | C25: 0 | D25: -14
A26: 土地征迁补偿和安置支出 | C26: 0 | D26: 0
A27: 设备购置 | B27: 1070 | C27: 1014 | D27: -56
A28: 大型修缮 | B28: 4 | C28: 2 | D28: -2
A29: 其他资本性支出 | B29: 7200 | C29: 15770 | D29: 8570
A30: 四、机关资本性支出（二） | B30: =SUM(B31:B36) -> 200 | C30: 105 | D30: -95
A31: 房屋建筑物购建 | C31: 0 | D31: 0
A32: 基础设施建设 | C32: 0 | D32: 0
A33: 公务用车购置 | C33: 0 | D33: 0
A34: 设备购置 | B34: 150 | C34: 55 | D34: -95
A35: 大型修缮 | B35: 50 | C35: 50 | D35: 0
A36: 其他资本性支出 | C36: 0 | D36: 0
A37: 五、对事业单位经常性补助 | B37: =SUM(B38:B40) -> 109942 | C37: 115298 | D37: 5356
A38: 工资福利支出 | B38: 92070 | C38: 97557 | D38: 5487
A39: 商品和服务支出 | B39: 17872 | C39: 17741 | D39: -131
A40: 其他对事业单位补助 | C40: 0 | D40: 0
A41: 六、对事业单位资本性补助 | B41: =SUM(B42:B43) -> 1495 | C41: 3089 | D41: 1594
A42: 资本性支出 | B42: 1495 | C42: 3089 | D42: 1594
A43: 资本性支出（基本建设） | C43: 0 | D43: 0
A44: 七、对企业补助 | B44: =SUM(B45:B47) -> 12774 | C44: 9488 | D44: -3286
A45: 费用补贴 | C45: 15 | D45: 15
A46: 利息补贴 | C46: 0 | D46: 0
A47: 其他对企业补助 | B47: 12774 | C47: 9473 | D47: -3301
A48: 八、对企业资本性支出 | B48: =SUM(B49:B52) -> 0 | C48: 0 | D48: 0
A49: 资本金注入（一） | C49: 0 | D49: 0
A50: 资本金注入（二） | C50: 0 | D50: 0
A51: 政府投资基金股权投资 | C51: 0 | D51: 0
A52: 其他对企业资本性支出 | C52: 0 | D52: 0
A53: 九、对个人和家庭的补助 | B53: =SUM(B54:B58) -> 33872 | C53: 20920 | D53: -12952
A54: 社会福利和救助 | B54: 13079 | C54: 4146 | D54: -8933
A55: 助学金 | B55: 117 | C55: 133 | D55: 16
A56: 个人农业生产补贴 | C56: 0 | D56: 0
A57: 离退休费 | B57: 10489 | C57: 10200 | D57: -289
A58: 其他对个人和家庭的补助 | B58: 10187 | C58: 6441 | D58: -3746
A59: 十、对社会保障基金补助 | B59: =SUM(B60:B62) -> 33931 | C59: 20940 | D59: -12991
A60: 对社会保险基金补助 | B60: 33931 | C60: 20432 | D60: -13499
A61: 补充全国社会保障基金 | C61: 0 | D61: 0
A62: 对机关事业单位职业年金的补助 | C62: 508 | D62: 508
A63: 十一、债务利息及费用支出 | B63: =SUM(B64:B67) -> 7534 | C63: 7350 | D63: -184
A64: 国内债务付息 | B64: 7475 | C64: 7284 | D64: -191
A65: 国外债务付息 | B65: 40 | C65: 40 | D65: 0
A66: 国内债务发行费用 | B66: 19 | C66: 26 | D66: 7
A67: 国外债务发行费用 | C67: 0 | D67: 0
A68: 十二、债务还本支出 | B68: =SUM(B69:B70) -> 0 | C68: 0 | D68: 0
A69: 国内债务还本 | C69: 0 | D69: =C69-B69 -> 0
A70: 国外债务还本 | C70: 0 | D70: 0
A71: 十三、转移性支出 | B71: =SUM(B72:B77) -> 0 | C71: 0 | D71: 0
A72: 上下级政府间转移性支出 | C72: 0 | D72: 0
A73: 援助其他地区支出 | C73: 0 | D73: 0
A74: 债务转贷 | C74: 0 | D74: 0
A75: 调出资金 | C75: 0 | D75: 0
A76: 安排预算稳定调节基金 | C76: 0 | D76: 0
A77: 补充预算周转金 | C77: 0 | D77: 0
A78: 十四、预备费及预留 | B78: =SUM(B79:B80) -> 2706 | C78: 2644 | D78: -62
A79: 预备费 | B79: 2706 | C79: 2644 | D79: -62
A80: 预留 | C80: 0 | D80: 0
A81: 十五、其他支出 | B81: =SUM(B82:B86) -> 5707 | C81: 6422 | D81: 715
A82: 国家赔偿费用支出 | C82: 0 | D82: 0
A83: 对民间非营利组织和群众性自治组织补贴 | B83: 5094 | C83: 5690 | D83: 596
A84: 经常性赠与 | C84: 0 | D84: 0
A85: 资本性赠与 | C85: 0 | D85: 0
A86: 其他支出 | B86: 613 | C86: 732 | D86: 119

Sheet 附表四
A1: 附表四
A2: 2025年“三保”支出调整预算安排情况表
L3: 单位：万元
A4: 序号 | B4: 项目名称 | C4: 保障对象 数量 | D4: 保障标准 | G4: 需求数 | J4: 预算数 | K4: 调整 预算数 | L4: 比年初预 算数增减 | M4: 项目代码
D5: 国家标准 | E5: 省级标准 | F5: 地方标准 | G5: 国家标准 需求 | H5: 省级标准 需求 | I5: 地方标准 需求
A6: 合计 | J6: =SUM(J7,J69,J73) -> 271,480.00 | K6: 272,920.00 | L6: =K6-J6 -> 1,440.00
A7: 三保支出合计 | G7: =SUM(G8,G22,G26) ->  | J7: 112,454.32 | K7: 109,789.09 | L7: -2,665.23
A8: 1 | B8: 保工资 | C8: 4,596 | G8: =SUM(G9,G13:G19,G20,G21,G27) ->  | J8: =SUM(J9,J13:J19,J20,J21) -> 69,370.83 | K8: 69,203.79 | L8: -167.04 | M8: 003001
A9: =A8+1 -> 2 | B9: 在职人员基本工资 | C9: =SUM(C10:C12) -> 4,586 | G9: 20,495.22 | H9: 20,495.22 | I9: 20,495.22 | J9: 23,972.17 | K9: 24,289.55 | L9: 317.38 | M9: 003001001
A10: 3 | B10: 公检法司部门 | J10: 170.13 | K10: 258.10 | L10: 87.97 | M10: 003001001001
A11: 4 | B11: 其他行政单位 | C11: 707 | D11: 4.0800 | E11: 4.0800 | F11: 4.0800 | G11: =C11*D11 -> 2,884.56 | H11: =C11*E11 -> 2,884.56 | I11: =C11*F11 -> 2,884.56 | J11: 3,641.26 | K11: 3,201.12 | L11: -440.14 | M11: 003001001002
A12: 5 | B12: 事业单位 | C12: 3,879 | D12: 4.5400 | E12: 4.5400 | F12: 4.5400 | G12: 17,610.66 | H12: 17,610.66 | I12: 17,610.66 | J12: 20,160.78 | K12: 20,830.33 | L12: 669.55 | M12: 003001001003
A13: 6 | B13: 公务员年终一次性奖金 | C13: =707-122 -> 585 | D13: 0.3400 | E13: 0.3400 | F13: 0.3400 | G13: 198.90 | H13: 198.90 | I13: 198.90 | J13: 220.40 | K13: 224.75 | L13: 4.35 | M13: 003001002
A14: 7 | B14: 公务员规范津贴补贴 | C14: 707 | D14: 3.0000 | E14: 3.0000 | F14: 3.0000 | G14: 2,121.00 | H14: 2,121.00 | I14: 2,121.00 | J14: 2,653.41 | K14: 2,978.18 | L14: 324.77 | M14: 003001003
A15: 8 | B15: 公务员基础绩效奖 | C15: 707 | D15: 2.6667 | E15: 4.3344 | F15: 4.3344 | G15: 1,885.36 | H15: 3,064.42 | I15: 3,064.42 | J15: 3,177.65 | K15: 2,831.74 | L15: -345.91 | M15: 003001004
A16: 9 | B16: 事业单位绩效工资 | C16: =3879 -> 3,879 | D16: 3.0000 | E16: 3.0000 | F16: 3.0000 | G16: 11,637.00 | H16: 11,637.00 | I16: 11,637.00 | J16: 13,105.63 | K16: 14,251.79 | L16: 1,146.16 | M16: 003001005
A17: 10 | B17: 基础性绩效 | K17: 9,140.10 | M17: 003001005001
A18: 11 | B18: 奖励性绩效 | K18: 5,111.69 | M18: 003001005002
A19: 12 | B19: 在职工资附加性支出 | C19: =SUM(#REF!) ->  | G19: =SUM(#REF!) ->  | H19: =SUM(#REF!) ->  | I19: =SUM(#REF!) ->  | J19: 26,040.46 | K19: 24,540.25 | L19: =K19-J19 -> -1,500.21 | M19: 003001008
A20: 13 | B20: 岗位津贴 | C20: =SUM(#REF!) ->  | G20: =SUM(#REF!) ->  | H20: =SUM(#REF!) ->  | I20: =SUM(#REF!) ->  | J20: 0.00 | K20: 0.00 | L20: 0.00 | M20: 003001009
A21: 14 | B21: 离休人员经费 | C21: 10 | D21: 6.0860 | E21: 6.0860 | F21: 6.0860 | G21: =C21*D21 -> 60.86 | H21: =C21*E21 -> 60.86 | I21: =C21*F21 -> 60.86 | J21: 201.11 | K21: 87.53 | L21: -113.58 | M21: 003001010
A22: 15 | B22: 保运转 | C22: =SUM(C23:C25) -> 1,317 | G22: 1,935.90 | H22: 1,935.90 | I22: 1,935.90 | J22: 2,046.01 | K22: 1,943.08 | L22: -102.93 | M22: 003002
A23: 16 | B23: 行政部门 | C23: 707 | D23: 1.6200 | E23: 1.6200 | F23: 1.6200 | G23: 1,145.34 | H23: 1,145.34 | I23: 1,145.34 | J23: 1,248.94 | K23: 1,217.69 | L23: -31.25 | M23: 003002001
A24: 17 | B24: 公检法部门 | J24: 63.90 | K24: 58.40 | L24: -5.50 | M24: 003002002
A25: 18 | B25: 其他部门 | C25: =3879-238-2719-312 -> 610 | D25: 1.2960 | E25: 1.2960 | F25: 1.2960 | G25: 790.56 | H25: 790.56 | I25: 790.56 | J25: 733.17 | K25: 666.99 | L25: -66.18 | M25: 003002003
A26: 19 | B26: 保基本民生 | G26: =SUM(G27,G28,G31:G33,G36,G39,G42:G43,G44,G50,G53,G54:G56,G57:G58,G59:G63,G66:G68) ->  | J26: 41,037.48 | K26: 38,642.22 | L26: -2,395.26 | M26: 003003
A27: 20 | B27: 学前教育幼儿资助 | C27: =SUM(#REF!) ->  | G27: =SUM(#REF!) ->  | H27: =SUM(#REF!) ->  | I27: =SUM(#REF!) ->  | J27: 44.50 | K27: 38.76 | L27: -5.74 | M27: 003003001
A28: 21 | B28: 城乡义务教育生均公用经费 | C28: =SUM(C29:C30) -> 60,295 | G28: 4,856.61 | H28: 4,856.61 | I28: 4,856.61 | J28: 5,657.10 | K28: 5,793.26 | L28: 136.16 | M28: 003003002
A29: 22 | B29: 小学 | C29: 43,571 | D29: 0.0750 | E29: 0.0750 | F29: 0.0750 | G29: =C29*D29 -> 3,267.83 | H29: =C29*E29 -> 3,267.83 | I29: =C29*F29 -> 3,267.83 | J29: 3,784.86 | K29: 3,825.15 | L29: 40.29 | M29: 003003002001
A30: 23 | B30: 初中 | C30: 16,724 | D30: 0.0950 | E30: 0.0950 | F30: 0.0950 | G30: 1,588.78 | H30: 1,588.78 | I30: 1,588.78 | J30: 1,872.24 | K30: 1,968.11 | L30: 95.87 | M30: 003003002002
A31: 24 | B31: 义务教育阶段特殊教育学校随班就读残疾学生生均公用经费 | C31: 175 | D31: 0.9500 | E31: 0.9500 | F31: 0.9500 | G31: 166.25 | H31: 166.25 | I31: 166.25 | J31: 189.10 | K31: 195.20 | L31: 6.10 | M31: 003003003
A32: 25 | B32: 义务教育免费提供教科书 | J32: 0.00 | K32: 0.00 | L32: 0.00 | M32: 003003004
A33: 26 | B33: 家庭经济困难学生生活补助 | C33: =SUM(C34,C35) ->  | J33: 67.00 | K33: 69.56 | L33: 2.56 | M33: 003003005
A34: 27 | B34: 小学 | C34: =SUM(#REF!) ->  | D34: 0.0500 | E34: 0.0500 | F34: 0.0500 | G34: =SUM(#REF!) ->  | H34: =SUM(#REF!) ->  | I34: =SUM(#REF!) ->  | J34: 44.00 | K34: 46.56 | L34: 2.56 | M34: 003003005001
A35: 28 | B35: 初中 | C35: =SUM(#REF!) ->  | D35: 0.0625 | E35: 0.0625 | F35: 0.0625 | G35: =SUM(#REF!) ->  | H35: =SUM(#REF!) ->  | I35: =SUM(#REF!) ->  | J35: 23.00 | K35: 23.00 | L35: 0.00 | M35: 003003005002
A36: 29 | B36: 普通高中学生资助 | C36: =SUM(C37,C38) -> 144 | G36: 30.54 | H36: 30.54 | I36: 30.54 | J36: 23.52 | K36: 33.40 | L36: 9.88 | M36: 003003006
A37: 30 | B37: 家庭经济困难学生国家助学金 | C37: 100 | D37: 0.2350 | E37: 0.2350 | F37: 0.2350 | G37: =C37*D37 -> 23.50 | H37: =C37*E37 -> 23.50 | I37: =C37*F37 -> 23.50 | J37: 15.00 | K37: 24.52 | L37: 9.52 | M37: 003003006001
A38: 31 | B38: 免除家庭经济困难学生学杂费 | C38: 44 | D38: 0.1600 | E38: 0.1600 | F38: 0.1600 | G38: 7.04 | H38: 7.04 | I38: 7.04 | J38: 8.52 | K38: 8.88 | L38: 0.36 | M38: 003003006002
A39: 32 | B39: 中职教育学生资助 | C39: =SUM(C40:C41) ->  | G39: =SUM(G40,G41) ->  | J39: 825.45 | K39: 815.37 | L39: -10.08 | M39: 003003007
A40: 33 | B40: 家庭经济困难学生国家助学金 | C40: =SUM(#REF!) ->  | D40: 0.2000 | E40: 0.2000 | F40: 0.2000 | G40: =SUM(#REF!) ->  | H40: =SUM(#REF!) ->  | I40: =SUM(#REF!) ->  | J40: 10.50 | K40: 20.32 | L40: 9.82 | M40: 003003007001
A41: 34 | B41: 农村、涉农专业和家庭经济困难学生免学费 | C41: 1,050 | D41: 0.2100 | E41: 0.2100 | F41: 0.2100 | G41: 220.50 | H41: 220.50 | I41: 220.50 | J41: 814.95 | K41: 795.05 | L41: -19.90 | M41: 003003007002
A42: 35 | B42: 农村义务教育学生营养改善计划 | J42: 0.00 | K42: 0.00 | L42: 0.00 | M42: 003003008
A43: 36 | B43: 博物馆、纪念馆免费开放补助和公共美术馆、图书馆、文化馆站免费开放补助 | C43: =SUM(#REF!) ->  | G43: =SUM(#REF!) ->  | H43: =SUM(#REF!) ->  | I43: =SUM(#REF!) ->  | J43: 133.00 | K43: 93.00 | L43: -40.00 | M43: 003003009
A44: 37 | B44: 困难群众救助 | C44: =SUM(C45:C47,C48,C49) ->  | J44: 1,411.80 | K44: 1,203.05 | L44: -208.75 | M44: 003003010
A45: 38 | B45: 最低生活保障 | C45: 877 | D45: 0.5100 | E45: 0.5100 | F45: 0.7900 | G45: =C45*D45 -> 447.27 | H45: =C45*E45 -> 447.27 | I45: =C45*F45 -> 692.83 | J45: 774.00 | K45: 554.00 | L45: -220.00 | M45: 003003010001
A46: 39 | B46: 特困人员救助供养 | C46: 88 | D46: 1.0200 | E46: 1.0200 | F46: 1.5000 | G46: =C46*D46 -> 89.76 | H46: =C46*E46 -> 89.76 | I46: =C46*F46 -> 132.00 | J46: 367.30 | K46: 367.30 | L46: 0.00 | M46: 003003010002
A47: 40 | B47: 特殊儿童群体基本生活保障 | C47: =SUM(#REF!) ->  | G47: =SUM(#REF!) ->  | H47: =SUM(#REF!) ->  | I47: =SUM(#REF!) ->  | J47: 71.70 | K47: 82.95 | L47: 11.25 | M47: 003003010003
A48: 41 | B48: 临时救助 | C48: =SUM(#REF!) ->  | G48: =SUM(#REF!) ->  | H48: =SUM(#REF!) ->  | I48: =SUM(#REF!) ->  | J48: 198.80 | K48: 198.80 | L48: 0.00 | M48: 003003010004
A49: 42 | B49: 流浪乞讨人员救助 | J49: 0.00 | K49: 0.00 | L49: 0.00 | M49: 003003010005
A50: 43 | B50: 残疾人补贴 | C50: =SUM(C51:C52) ->  | J50: 349.00 | K50: 349.00 | L50: 0.00 | M50: 003003011
A51: 44 | B51: 困难残疾人生活补贴 | C51: 640 | D51: 0.1188 | E51: 0.1188 | F51: 0.1368 | G51: =C51*D51 -> 76.03 | H51: =C51*E51 -> 76.03 | I51: =C51*F51 -> 87.55 | J51: 119.00 | K51: 119.00 | L51: 0.00 | M51: 003003011001
A52: 45 | B52: 重度残疾人护理补贴 | C52: =SUM(#REF!) ->  | G52: =SUM(#REF!) ->  | H52: =SUM(#REF!) ->  | I52: =SUM(#REF!) ->  | J52: 230.00 | K52: 230.00 | L52: 0.00 | M52: 003003011002
A53: 46 | B53: 城乡居民基本养老保险 | C53: =SUM(#REF!) ->  | G53: =SUM(#REF!) ->  | H53: =SUM(#REF!) ->  | I53: =SUM(#REF!) ->  | J53: 5,973.07 | K53: 5,396.00 | L53: -577.07 | M53: 003003012
A54: 47 | B54: 财政对企业职工养老保险的补助 | C54: 8,000 | D54: 0.0260 | E54: 0.0260 | F54: 0.0260 | G54: 208.00 | H54: 208.00 | I54: 208.00 | J54: 162.00 | K54: 0.00 | L54: -162.00 | M54: 003003013
A55: 48 | B55: 财政对机关事业单位养老保险的补助 | C55: 3,175 | D55: 2.9291 | E55: 2.9291 | F55: 2.9291 | G55: 9,299.89 | H55: 9,299.89 | I55: 9,299.89 | J55: 10,500.00 | K55: 10,500.00 | L55: 0.00 | M55: 003003014
A56: 49 | B56: 老年人福利补贴 | C56: =SUM(#REF!) ->  | G56: =SUM(#REF!) ->  | H56: =SUM(#REF!) ->  | I56: =SUM(#REF!) ->  | J56: 442.88 | K56: 456.88 | L56: 14.00 | M56: 003003015
A57: 50 | B57: 就业见习补贴 | C57: 50 | D57: 1.1760 | E57: 1.1760 | F57: 1.1760 | G57: =C57*D57 -> 58.80 | H57: =C57*E57 -> 58.80 | I57: =C57*F57 -> 58.80 | K57: 0.00 | L57: 0.00 | M57: 003003016
A58: 51 | B58: 优抚对象抚恤和生活补助经费 | C58: =SUM(#REF!) ->  | G58: =SUM(#REF!) ->  | H58: =SUM(#REF!) ->  | I58: =SUM(#REF!) ->  | J58: 1,936.66 | K58: 1,548.97 | L58: -387.69 | M58: 003003017
A59: 52 | B59: 义务兵优待金 | C59: 127 | D59: 2.7989 | E59: 2.7989 | F59: 2.7989 | G59: 355.46 | H59: 355.46 | I59: 355.46 | J59: 789.00 | K59: 519.20 | L59: -269.80 | M59: 003003018
A60: 53 | B60: 退役安置支出 | C60: 70 | D60: 8.6000 | E60: 8.6000 | F60: 8.6000 | G60: 602.00 | H60: 602.00 | I60: 602.00 | J60: 712.69 | K60: 479.04 | L60: -233.65 | M60: 003003019
A61: 54 | B61: 城乡居民基本医疗保险 | C61: 137,477 | D61: 0.0440 | E61: 0.0440 | F61: 0.0440 | G61: 6,048.99 | H61: 6,048.99 | I61: 6,048.99 | J61: 6,812.00 | K61: 6,812.00 | L61: 0.00 | M61: 003003020
A62: 55 | B62: 基本公共卫生服务 | C62: 397,997 | D62: 0.0089 | E62: 0.0089 | F62: 0.0089 | G62: 3,542.17 | H62: 3,542.17 | I62: 3,542.17 | J62: 3,751.71 | K62: 3,637.53 | L62: -114.18 | M62: 003003021
A63: 56 | B63: 计划生育支出 | C63: =SUM(C64:C65) ->  | J63: 965.00 | K63: 410.00 | L63: -555.00 | M63: 003003022
A64: 57 | B64: 农村部分计划生育家庭奖励扶助 | J64: 0.00 | K64: 0.00 | L64: 0.00 | M64: 003003022001
A65: 58 | B65: 全国计划生育特别扶助制度 | C65: =SUM(#REF!) ->  | G65: =SUM(#REF!) ->  | H65: =SUM(#REF!) ->  | I65: =SUM(#REF!) ->  | J65: 965.00 | K65: 410.00 | L65: -555.00 | M65: 003003022002
A66: 59 | B66: 城乡医疗救助 | C66: 9,206 | D66: 0.0290 | E66: 0.0290 | F66: 0.0290 | G66: =C66*D66 -> 266.97 | H66: =C66*E66 -> 266.97 | I66: =C66*F66 -> 266.97 | J66: 292.00 | K66: 292.00 | L66: 0.00 | M66: 003003023
A67: 60 | B67: 村级支出 | J67: 0.00 | K67: 0.00 | L67: 0.00 | M67: 003003025
A68: 61 | B68: 其他基本民生支出 | J68: 0.00 | K68: 0.00 | L68: 0.00 | M68: 003003027
A69: 三保以外刚性支出合计 | G69: =SUM(G70:G72) -> 0.00 | H69: 0.00 | I69: 0.00 | J69: 28,932.95 | K69: 30,307.52 | L69: 1,374.57 | M69: 004
A70: =A68+1 -> 62 | B70: 债务还本付息支出 | J70: 7,303.00 | K70: 7,283.63 | L70: -19.37 | M70: 004001
A71: =A70+1 -> 63 | B71: 编制外长聘人员支出 | J71: 12,083.09 | K71: 13,505.77 | L71: 1,422.68 | M71: 004002
A72: =A71+1 -> 64 | B72: 其他刚性支出 | J72: 9,546.86 | K72: 9,518.12 | L72: -28.74 | M72: 004003
A73: 非三保支出合计 | J73: 130,092.73 | K73: 132,823.39 | L73: 2,730.66 | M73: 000001

Sheet 附表五
A1: 附表五
A2: 2025年政府性基金预算收支调整平衡表
F3: 单位：万元
A4: 收入项目 | B4: 年初 预算数 | C4: 调整 预算数 | D4: 比年初预 算数增减 | E4: 支出项目 | F4: 年初 预算数 | G4: 调整 预算数 | H4: 比年初预 算数增减
A5: 一、本年收入 | B5: 0 | C5: 0 | D5: 0 | E5: 一、本年支出（预计） | F5: 199,183 | G5: 400,102 | H5: 200,919
A6: 1、其他政府性基金收入 | E6: （一）城乡社区支出 | F6: 178,242 | G6: 136,286 | H6: -41,956
E7: 1.国有土地使用权出让收入及对应专项债务收入安排的支出 | F7: 178,201 | G7: 136,245 | H7: -41,956
E8: 征地和征迁补偿支出 | F8: 175,655 | G8: 136,197 | H8: -39,458
E9: 农业农村生态环境支出 | F9: 46 | G9: 48 | H9: 2
E10: 其他国有土地使用权出让收入安排的支出 | F10: 2,500 | G10: 0 | H10: -2,500
E11: 2.城市基础设施配套费安排的支出 | F11: 41 | G11: 41 | H11: 0
E12: 其他城市基础设施配套费安排的支出 | F12: 41 | G12: 41 | H12: 0
E13: （二）其他支出 | F13: 0 | G13: 240,265 | H13: 240,265
E14: 1.其他政府性基金及对应专项债务收入安排的支出 | F14: 0 | G14: 240,265 | H14: 240,265
E15: 其他地方自行试点项目收益专项债券收入安排的支出 | F15: 0 | G15: 240,265 | H15: 240,265
E16: （三）债务付息支出 | F16: 20,925 | G16: 23,287 | H16: 2,362
E17: 1.地方政府专项债务付息支出 | F17: 20,925 | G17: 23,287 | H17: 2,362
E18: 棚户区改造专项债券付息支出 | F18: 137 | G18: 137 | H18: -0
E19: 其他地方自行试点项目收益专项债券付息支出 | F19: 18,126 | G19: 20,462 | H19: 2,336
E20: 其他政府性基金债务付息支出 | F20: 2,662 | G20: 2,688 | H20: 26
E21: （四）债务发行费用支出 | F21: 16 | G21: 264 | H21: 248
E22: 1.地方政府专项债务发行费用支出 | F22: 16 | G22: 264 | H22: 248
E23: 其他地方自行试点项目收益专项债券发行费用支出 | F23: 16 | G23: 264 | H23: 248
A24: 二、调入资金 | B24: 48,870 | C24: 51,802 | D24: 2,932 | E24: 二、调出资金 | F24: 103,291 | G24: 90,524 | H24: -12,767
A25: 三、上级补助收入（预计） | B25: 256,485 | C25: 200,621 | D25: -55,864 | E25: 三、上解支出 | F25: 819 | G25: 0 | H25: -819
A26: 四、动用上年结余 | B26: 107,550 | C26: 113,243 | D26: 5,693 | E26: 四、上年结余资金安排支出 | F26: 107,550 | G26: 113,243 | H26: 5,693
A27: 五、债券转贷收入 | B27: 17,014 | C27: 259,694 | D27: 242,680 | E27: 五、债券转贷支出 | F27: 0 | G27: 0 | H27: 0
A28: 六、债券收入 | B28: 0 | C28: 0 | D28: 0 | E28: 六、债务还本支出 | F28: 19,076 | G28: 21,491 | H28: 2,415
E29: 1.地方政府专项债务还本支出 | F29: 19,076 | G29: 21,491 | H29: 2,415
E30: 国有土地使用权出让金债务还本支出 | F30: 19,076 | G30: 19,076 | H30: 0
E31: 其他政府性基金债务还本支出 | F31: 0 | G31: 2,415 | H31: 2,415
A32: 收入合计 | B32: 429,919 | C32: 625,360 | D32: 195,441 | E32: 支出合计 | F32: 429,919 | G32: 625,360 | H32: 195,441
A33: 备注：上级补助收入为上级返还土地出让金、城市基础设施建设费、教育资金和农田水利资金。

Sheet 附表六
A1: 附表六
A2: 2025年政府性基金预算收支计划调整平衡表
J3: 单位：万元
A4: 序号 | B4: 收入项目 | C4: 年初 预算数 | D4: 调整 预算数 | E4: 比年初预 算数增减 | F4: 序号 | G4: 支出项目 | H4: 年初 预算数 | I4: 调整 预算数 | J4: 比年初预 算数增减
A5: 一、土地出让金收入 | C5: 234,337 | D5: 185,297 | E5: -49,040 | F5: 一、重点建设项目 | H5: 127,778 | I5: 114,114 | J5: -13,664
A6: 1 | B6: 新步定向定价商品房（2023-58号储备用地） | C6: 40,206 | D6: 43,484 | E6: 3,278 | F6: 1 | G6: 江南新区建设项目 | H6: 50,000 | I6: 71,921 | J6: 21,921
A7: 2 | B7: 西隅中心小学坂头校区北侧商住用地（2023-76号储备用地） | C7: 19,021 | D7: 22,152 | E7: 3,131 | F7: 2 | G7: 红梅危旧改造更新项目 | H7: 26,900 | I7: 12,700 | J7: -14,200
A8: 3 | B8: 满堂里东侧住宅用地（2023-78号储备用地） | C8: 37,892 | D8: 68,025 | E8: 30,133 | F8: 3 | G8: 兴贤路项目：龙湖（2020-2号储备用地安置房回购协议） | H8: 9,256 | I8: 0 | J8: -9,256
A9: 4 | B9: 繁荣片区兴贤医院北侧商住用地（2023-22号储备用地） | C9: 37,986 | D9: 17,890 | E9: -20,096 | F9: 4 | G9: 环卫一体化 | H9: 8,000 | I9: 5,161 | J9: -2,839
A10: 5 | B10: 红梅新村 | C10: 33,425 | D10: 16,947 | E10: -16,478 | F10: 5 | G10: 延陵本片区改造项目：源昌滨江豪庭（源昌江南城）回购房款 | H10: 6,312 | I10: 0 | J10: -6,312
A11: 6 | B11: 獭山公园西侧住宅用地 | C11: 0 | D11: 12,328 | E11: 12,328 | F11: 6 | G11: 金泰花园一期、二期工程监理费用、咨询费等 | H11: 4,960 | I11: 1,960 | J11: -3,000
A12: 7 | B12: 锦美安置区 | C12: 5,056 | D12: 0 | E12: -5,056 | F12: 7 | G12: 建发玺院（2020-8号储备用地延陵三期项目安置型商品房回购协议） | H12: 4,513 | I12: 513 | J12: -4,000
A13: 8 | B13: 华侨国际体育文化交流基地（2023-35号储备用地） | C13: 794 | D13: 0 | E13: -794 | F13: 8 | G13: 民兵训练基地经费 | H13: 2,500 | I13: 0 | J13: -2,500
A14: 9 | B14: 奔驰4S店 | C14: 7,182 | D14: 0 | E14: -7,182 | F14: 9 | G14: 污水处理费 | H14: 2,400 | I14: 1,900 | J14: -500
A15: 10 | B15: 繁荣片区商业用地 | C15: 9,757 | D15: 0 | E15: -9,757 | F15: 10 | G15: 2021年老旧小区改造 | H15: 1,800 | I15: 702 | J15: -1,098
A16: 11 | B16: 金威地块（2024-38号储备用地） | C16: 5,226 | D16: 0 | E16: -5,226 | F16: 11 | G16: 2020年老旧小区改造 | H16: 1,100 | I16: 500 | J16: -600
A17: 12 | B17: 二针地块 | C17: 28,860 | D17: 0 | E17: -28,860 | F17: 12 | G17: 2024年老旧小区改造 | H17: 1,060 | I17: 361 | J17: -699
A18: 13 | B18: 2023-41号储备用地（高山娱乐康体用地） | C18: 5,098 | D18: 0 | E18: -5,098 | F18: 13 | G18: 延陵安置小区二期（东片区）安置房建设经费 | H18: 1,038 | I18: 0 | J18: -1,038
A19: 14 | B19: 上年未返还 | C19: 3,834 | D19: 4,471 | E19: 637 | F19: 14 | G19: 江南片区大型垃圾转运站项目配套道路工程 | H19: 1,000 | I19: 0 | J19: -1,000
A20: 二、城市基础设施配套费收入 | C20: 7,453 | D20: 3,258 | E20: -4,195 | F20: 15 | G20: 市政水体设施建设、整治改造 | H20: 1,000 | I20: 960 | J20: -40
A21: 三、教育资金和农田水利资金 | C21: 14,695 | D21: 12,066 | E21: -2,629 | F21: 16 | G21: 市政管养经费 | H21: 1,000 | I21: 1,360 | J21: 360
A22: 四、债券转贷收入 | C22: 17,014 | D22: 259,694 | E22: 242,680 | F22: 17 | G22: 绿化建设管养经费 | H22: 818 | I22: 30 | J22: -788
A23: 五、债券收入 | C23: 0 | E23: 0 | F23: 18 | G23: 2025年老旧小区改造 | H23: 500 | I23: 49 | J23: -451
A24: 六、调入资金 | C24: 48,870 | D24: 51,802 | E24: 2,932 | F24: 19 | G24: 中心市区居民小区二次供水设施改造项目 | H24: 500 | I24: 0 | J24: -500
A25: 七、动用以前年度结余 | C25: 107,550 | D25: 113,243 | E25: 5,693 | F25: 20 | G25: 桥梁检测及桥梁加固完善设施项目 | H25: 500 | I25: 500 | J25: 0
F26: 21 | G26: 江南新区共享单车运营补贴费 | H26: 500 | I26: 235 | J26: -265
F27: 22 | G27: 鲤城林荫大道（笋江路至浮桥街）项目 | H27: 400 | I27: 400 | J27: 0
F28: 23 | G28: 站前大道鲤城段（南环路至池峰路）道路工程拆迁安置逾期过渡费 | H28: 375 | I28: 0 | J28: -375
F29: 24 | G29: 新门街-涂门街环境整治提升工程 | H29: 309 | I29: 0 | J29: -309
F30: 25 | G30: 鲤城区市政道路改造、维修工程 | H30: 300 | I30: 162 | J30: -138
F31: 26 | G31: 公厕改建改造和古城公厕提质工程 | H31: 400 | I31: 206 | J31: -194
F32: 27 | G32: 新华路环境整治提升工程 | H32: 195 | I32: 0 | J32: -195
F33: 28 | G33: 笋浯社区笋江公园未征收土地租用经费 | H33: 55 | I33: 55 | J33: 0
F34: 29 | G34: 金浦供水公司关于核拨污水处理费代征手续费 | H34: 41 | I34: 41 | J34: 0
F35: 30 | G35: 土壤普查经费 | H35: 40 | I35: 40 | J35: 0
F36: 31 | G36: 耕地安全利用 | H36: 6 | I36: 6 | J36: 0
F37: 32 | G37: 鲤城区爱国路周边片区安商房建设资金 | H37: 0 | I37: 14,200 | J37: 14,200
F38: 33 | G38: 城北路星湖路口交通安全隐患整治工程 | H38: 0 | I38: 104 | J38: 104
F39: 34 | G39: 燃气专项资金 | H39: 0 | I39: 45 | J39: 45
F40: 35 | G40: 滨江北路景观整治提升项目投入成本全面核算 | H40: 0 | I40: 3 | J40: 3
F41: 二、债券转贷收入安排的支出 | H41: 0 | I41: 242,680 | J41: 242,680
F42: 1 | G42: “国家级高新区”——新能源新材料产业基地建设及基础设施项目 | H42: 0 | I42: 114,000 | J42: 114,000
F43: 2 | G43: “国家级高新区”——产业基地建设及基础设施项目 | H43: 0 | I43: 100,000 | J43: 100,000
F44: 3 | G44: 鲤城区公共卫生服务中心二期 | H44: 0 | I44: 5,000 | J44: 5,000
F45: 4 | G45: 泉州市鲤城区智慧城市鲤城大脑项目 | H45: 0 | I45: 1,340 | J45: 1,340
F46: 5 | G46: 清理拖欠款 | H46: 0 | I46: 421 | J46: 421
F47: 6 | G47: 补充政府性基金财力（消化以前项目暂付款） | H47: 0 | I47: 19,504 | J47: 19,504
F48: 7 | G48: 政府购买服务 | H48: 0 | I48: 2,415 | J48: 2,415
F49: 三、PPP项目付费 | H49: 6,188 | I49: 6,188 | J49: 0
F50: 1 | G50: 站前大道西侧棚户区（石结构房屋）改造及基础设施建设金泰花园PPP项目 | H50: 6,188 | I50: 6,188 | J50: 0
F51: 四、政府购买服务 | H51: 8,533 | I51: 6,086 | J51: -2,447
F52: 五、地方政府专项债券付息 | H52: 20,925 | I52: 23,287 | J52: 2,362
F53: 六、中医联合医院建设项目还本付息 | H53: 387 | I53: 387 | J53: 0
F54: 七、国开发展基金 | H54: 46 | I54: 46 | J54: 0
F55: 八、地方政府专项债券还本 | H55: 19,076 | I55: 19,076 | J55: 0
F56: 九、地方政府专项债券发行费 | H56: 16 | I56: 264 | J56: 248
F57: 十、上解支出 | H57: 819 | I57: 0 | J57: -819
F58: 十一、调出资金（调到一般公共预算） | H58: 103,291 | I58: 90,524 | J58: -12,767
F59: 十二、消化以前项目暂付款 | H59: 35,310 | I59: 9,465 | J59: -25,845
F60: 十三、上年结余资金安排支出 | H60: 107,550 | I60: 113,243 | J60: 5,693
A61: 收入合计 | C61: 429,919 | D61: 625,360 | E61: 195,441 | F61: 支出合计 | H61: 429,919 | I61: 625,360 | J61: 195,441

Sheet 附表七
A1: 附表七
A2: 2025年国有资本经营收支调整预算平衡表
H3: 单位：万元
A4: 收入项目 | B4: 年初预算 | C4: 调整预算 | D4: 比年初预 算增减 | E4: 支出项目 | F4: 年初预算 | G4: 调整预算 | H4: 比年初预 算增减
A5: 一、本年收入 | B5: =SUM(B6,B8:B11) -> 4,095 | C5: =SUM(C6,C8:C11) -> 4,929 | D5: =C5-B5 -> 834 | E5: 一、本年支出 | F5: =SUM(F6:F11) -> 1,232 | G5: =SUM(G6:G11) -> 1,232 | H5: =G5-F5 -> 0
A6: 1、利润收入 | B6: 4,095 | C6: 4,929 | D6: 834 | E6: 1、解决历史遗留问题及改革成本支出 | H6: 0
A7: 泉州市鲤城区国有资本投资集团有限公司 | B7: 4,095 | C7: 4,929 | D7: 834 | E7: 2、国有企业资本金注入 | F7: 50 | G7: 50 | H7: 0
A8: 2、股利、股息收入 | D8: 0 | E8: 3、国有企业政策性补贴（项） | H8: 0
A9: 3、产权转让收入 | D9: 0 | E9: 4、金融国有资本经营预算支出 | H9: 0
A10: 4、清算收入 | D10: 0 | E10: 5、其他国有资本经营预算支出 | F10: 1,182 | G10: 1,182 | H10: 0
A11: 5、其他国有资本经营预算收入 | D11: 0
A12: 二、盘活存量资金收入 | D12: 0 | E12: 二、调出资金 | F12: 2,863 | G12: 3,697 | H12: =G12-F12 -> 834
A13: 三、上年结转 | D13: 0 | E13: 三、上年结余资金安排支出 | F13: =B5+B12+B13-F5-F12 -> 0 | G13: =C5+C12+C13-G5-G12 -> 0 | H13: 0
A14: 收入合计 | B14: =SUM(B5,B12,B13) -> 4,095 | C14: 4,929 | D14: 834 | E14: 支出合计 | F14: 4,095 | G14: 4,929 | H14: 834
A15: 备注：1、本年收入4929万元，主要是：泉州市鲤城区国有资本投资集团有限公司上缴上年度利润收入4929万元，该公司上年总体经营财务状况:资产总额335.97亿元，负债总额191.76亿元，所有者权益144.21亿元。 2、本年支出安排1232万元，主要是：根据《泉州市鲤城区人民政府关于印发区属企业国有资本收益收益管理意见的通知》（泉鲤政文〔2019〕24号安排国投集团及权属企业资本金(泉州刺桐鲤实业投资发展有限公司)50万元，根据《福建省粮食风险基金管理办法》（闽财规〔2022〕22号）安排粮食风险基金1182万元。 3、本年收支盈余3697万元，调往一般公共预算弥补收支缺口。

Sheet 附表八
A1: 附表八
A2: 2025年新增债券资金收支预算调整表
F3: 单位：万元
A4: 收入科目 | B4: 金额 | C4: 备注 | D4: 支出科目 | E4: 金额 | F4: 备注
A5: 一、一般公共预算收入 | B5: =SUM(B6) -> 8469 | D5: 一、一般公共预算支出 | E5: =SUM(E6:E8) -> 8469
A6: 1、地方政府一般债券转贷收入 | B6: 8469 | C6: 2025年第一批债券转贷资金 | D6: 1、其他普通教育支出 | E6: 7809 | F6: 泉州五中江南校区建设项目
D7: 2、其他城乡社区公共设施支出 | E7: 500 | F7: 鲤城区桥梁维修加固项目（一期工程）
D8: 3、城乡社区环境卫生 | E8: 160 | F8: 2025年鲤城区公厕改建改造工程
A9: 二、政府性基金收入 | B9: =SUM(B10) -> 240265 | D9: 二、政府性基金支出 | E9: =SUM(E10:E10) -> 240265
A10: 1、地方政府专项债务转贷收入 | B10: 240265 | C10: 2025年第一批债券转贷资金、2025年第三批债券转贷资金、2025年第五批债券转贷资金、2025年第三批政府债务限额 | D10: 1、其他地方自行试点项目收益专项债券收入安排的支出 | E10: 240265 | F10: 1、“国家级高新区”——新能源新材料产业基地建设及基础设施项目114000万元； 2、“国家级高新区”——产业基地建设及基础设施项目100000万元； 3、鲤城区公共卫生服务中心二期5000万元； 4、泉州市鲤城区智慧城市鲤城大脑项目1340万元； 5、清理拖欠款421万元； 6、补充政府性基金财力19504万元。
A11: 收入合计 | B11: =SUM(B5,B9) -> 248734 | D11: 支出合计 | E11: =SUM(E5,E9) -> 248734
